{"text_format":"1","workbook":"xlsx","n_sheets":1,"sheets":["24.12.2018"],"not_rendered":{"charts":0,"images":0,"macros":1,"external_links":0,"defined_names":1,"comments":0,"pivot_tables":0},"unopened":[],"bounds":{"document_bytes":16777216,"sheet_cells":100000,"rows_first":2000,"rows_last":500,"rows_between":2000,"halvings":0,"cell_chars":16384,"cell_head_chars":4096},"cells_cut":0,"cells_raw":0,"read":"whole","date_system":"1900"}

{"sheet":"24.12.2018","index":0,"n_rows":1000,"n_cols":13,"rows_kept":1000,"cut":false,"hidden":false,"merged":[]}
["Декабрь 2018"]
["Артикул","Наименование","Категоря","Остаток на начало дня годного товара","Приход","Расход","Брак","Итого годного",null,"СДО","На складе в днях","Целевой запас в днях","Заказ"]
["111111",null,null,250,30,50,2,{"$f":"D3+E3-F3-G3","v":228},null,40,{"$f":"H3/J3","v":5.7},7,{"$f":"(L3-K3)*J3","v":51.999999999999993}]
["22222",null,null,100,10,20,0,{"$f":"D4+E4-F4-G4","v":90},null,10,{"$f":"H4/J4","v":9},7,{"$f":"(L4-K4)*J4","v":-20}]
["333333",null,null,331,50,30,1,{"$f":"D5+E5-F5-G5","v":350},null,50,7,7,0]
["444444",null,null,80,10,5,0,85,null,5,17,null,-85]
[null,null,null,null,null,null,null,0,null,null,{"$error":"#DIV/0!"},null,{"$error":"#DIV/0!"}]
[null,null,null,null,null,null,null,0,null,null,{"$error":"#DIV/0!"},null,{"$error":"#DIV/0!"}]
[null,null,null,null,null,null,null,0,null,null,{"$error":"#DIV/0!"},null,{"$error":"#DIV/0!"}]
[null,null,null,null,null,null,null,0,null,null,{"$error":"#DIV/0!"},null,{"$error":"#DIV/0!"}]
[null,null,null,null,null,null,null,0,null,null,{"$error":"#DIV/0!"},null,{"$error":"#DIV/0!"}]
[null,null,null,null,null,null,null,0,null,null,{"$error":"#DIV/0!"},null,{"$error":"#DIV/0!"}]
[null,null,null,null,null,null,null,0,null,null,{"$error":"#DIV/0!"},null,{"$error":"#DIV/0!"}]
[null,null,null,null,null,null,null,0,null,null,{"$error":"#DIV/0!"},null,{"$error":"#DIV/0!"}]
[null,null,null,null,null,null,null,0,null,null,{"$error":"#DIV/0!"},null,{"$error":"#DIV/0!"}]
[null,null,null,null,null,null,null,0,null,null,{"$error":"#DIV/0!"},null,{"$error":"#DIV/0!"}]
[null,null,null,null,null,null,null,0,null,null,{"$error":"#DIV/0!"},null,{"$error":"#DIV/0!"}]
[null,null,null,null,null,null,null,0,null,null,{"$error":"#DIV/0!"},null,{"$error":"#DIV/0!"}]
[null,null,null,null,null,null,null,0,null,null,{"$error":"#DIV/0!"},null,{"$error":"#DIV/0!"}]
[null,null,null,null,null,null,null,0,null,null,{"$error":"#DIV/0!"},null,{"$error":"#DIV/0!"}]
[null,null,null,null,null,null,null,0,null,null,{"$error":"#DIV/0!"},null,{"$error":"#DIV/0!"}]
[null,null,null,null,null,null,null,0,null,null,{"$error":"#DIV/0!"},null,{"$error":"#DIV/0!"}]
[null,null,null,null,null,null,null,0,null,null,{"$error":"#DIV/0!"},null,{"$error":"#DIV/0!"}]
[null,null,null,null,null,null,null,0,null,null,{"$error":"#DIV/0!"},null,{"$error":"#DIV/0!"}]
[null,null,null,null,null,null,null,0,null,null,{"$error":"#DIV/0!"},null,{"$error":"#DIV/0!"}]
[null,null,null,null,null,null,null,0,null,null,{"$error":"#DIV/0!"},null,{"$error":"#DIV/0!"}]
[null,null,null,null,null,null,null,0,null,null,{"$error":"#DIV/0!"},null,{"$error":"#DIV/0!"}]
[null,null,null,null,null,null,null,0,null,null,{"$error":"#DIV/0!"},null,{"$error":"#DIV/0!"}]
[null,null,null,null,null,null,null,0,null,null,{"$error":"#DIV/0!"},null,{"$error":"#DIV/0!"}]
[null,null,null,null,null,null,null,0,null,null,{"$error":"#DIV/0!"},null,{"$error":"#DIV/0!"}]
[null,null,null,null,null,null,null,0,null,null,{"$error":"#DIV/0!"},null,{"$error":"#DIV/0!"}]
[null,null,null,null,null,null,null,0,null,null,{"$error":"#DIV/0!"},null,{"$error":"#DIV/0!"}]
[null,null,null,null,null,null,null,0,null,null,{"$error":"#DIV/0!"},null,{"$error":"#DIV/0!"}]
[null,null,null,null,null,null,null,0,null,null,{"$error":"#DIV/0!"},null,{"$error":"#DIV/0!"}]
[null,null,null,null,null,null,null,0,null,null,{"$error":"#DIV/0!"},null,{"$error":"#DIV/0!"}]
[null,null,null,null,null,null,null,0,null,null,{"$error":"#DIV/0!"},null,{"$error":"#DIV/0!"}]
[null,null,null,null,null,null,null,0,null,null,{"$error":"#DIV/0!"},null,{"$error":"#DIV/0!"}]
[null,null,null,null,null,null,null,0,null,null,{"$error":"#DIV/0!"},null,{"$error":"#DIV/0!"}]
[null,null,null,null,null,null,null,0,null,null,{"$error":"#DIV/0!"},null,{"$error":"#DIV/0!"}]
[null,null,null,null,null,null,null,0,null,null,{"$error":"#DIV/0!"},null,{"$error":"#DIV/0!"}]
[null,null,null,null,null,null,null,0,null,null,{"$error":"#DIV/0!"},null,{"$error":"#DIV/0!"}]
[null,null,null,null,null,null,null,0,null,null,{"$error":"#DIV/0!"},null,{"$error":"#DIV/0!"}]
[null,null,null,null,null,null,null,0,null,null,{"$error":"#DIV/0!"},null,{"$error":"#DIV/0!"}]
[null,null,null,null,null,null,null,0,null,null,{"$error":"#DIV/0!"},null,{"$error":"#DIV/0!"}]
[null,null,null,null,null,null,null,0,null,null,{"$error":"#DIV/0!"},null,{"$error":"#DIV/0!"}]
[null,null,null,null,null,null,null,0,null,null,{"$error":"#DIV/0!"},null,{"$error":"#DIV/0!"}]
[null,null,null,null,null,null,null,0,null,null,{"$error":"#DIV/0!"},null,{"$error":"#DIV/0!"}]
[null,null,null,null,null,null,null,0,null,null,{"$error":"#DIV/0!"},null,{"$error":"#DIV/0!"}]
[null,null,null,null,null,null,null,0,null,null,{"$error":"#DIV/0!"},null,{"$error":"#DIV/0!"}]
[null,null,null,null,null,null,null,0,null,null,{"$error":"#DIV/0!"},null,{"$error":"#DIV/0!"}]
[null,null,null,null,null,null,null,0,null,null,{"$error":"#DIV/0!"},null,{"$error":"#DIV/0!"}]
[null,null,null,null,null,null,null,0,null,null,{"$error":"#DIV/0!"},null,{"$error":"#DIV/0!"}]
[null,null,null,null,null,null,null,0,null,null,{"$error":"#DIV/0!"},null,{"$error":"#DIV/0!"}]
[null,null,null,null,null,null,null,0,null,null,{"$error":"#DIV/0!"},null,{"$error":"#DIV/0!"}]
[null,null,null,null,null,null,null,0,null,null,{"$error":"#DIV/0!"},null,{"$error":"#DIV/0!"}]
[null,null,null,null,null,null,null,0,null,null,{"$error":"#DIV/0!"},null,{"$error":"#DIV/0!"}]
[null,null,null,null,null,null,null,0,null,null,{"$error":"#DIV/0!"},null,{"$error":"#DIV/0!"}]
[null,null,null,null,null,null,null,0,null,null,{"$error":"#DIV/0!"},null,{"$error":"#DIV/0!"}]
[null,null,null,null,null,null,null,0,null,null,{"$error":"#DIV/0!"},null,{"$error":"#DIV/0!"}]
[null,null,null,null,null,null,null,0,null,null,{"$error":"#DIV/0!"},null,{"$error":"#DIV/0!"}]
[null,null,null,null,null,null,null,0,null,null,{"$error":"#DIV/0!"},null,{"$error":"#DIV/0!"}]
[null,null,null,null,null,null,null,0,null,null,{"$error":"#DIV/0!"},null,{"$error":"#DIV/0!"}]
[null,null,null,null,null,null,null,0,null,null,{"$error":"#DIV/0!"},null,{"$error":"#DIV/0!"}]
[null,null,null,null,null,null,null,0,null,null,{"$error":"#DIV/0!"},null,{"$error":"#DIV/0!"}]
[null,null,null,null,null,null,null,0,null,null,{"$error":"#DIV/0!"},null,{"$error":"#DIV/0!"}]
[null,null,null,null,null,null,null,0,null,null,{"$error":"#DIV/0!"},null,{"$error":"#DIV/0!"}]
[null,null,null,null,null,null,null,0,null,null,{"$error":"#DIV/0!"},null,{"$error":"#DIV/0!"}]
[null,null,null,null,null,null,null,0,null,null,{"$f":"H68/J68","v":{"$error":"#DIV/0!"}},null,{"$f":"(L68-K68)*J68","v":{"$error":"#DIV/0!"}}]
[null,null,null,null,null,null,null,{"$f":"D69+E69-F69-G69","v":0},null,null,{"$error":"#DIV/0!"},null,{"$error":"#DIV/0!"}]
[null,null,null,null,null,null,null,0,null,null,{"$error":"#DIV/0!"},null,{"$error":"#DIV/0!"}]
[null,null,null,null,null,null,null,0,null,null,{"$error":"#DIV/0!"},null,{"$error":"#DIV/0!"}]
[null,null,null,null,null,null,null,0,null,null,{"$error":"#DIV/0!"},null,{"$error":"#DIV/0!"}]
[null,null,null,null,null,null,null,0,null,null,{"$error":"#DIV/0!"},null,{"$error":"#DIV/0!"}]
[null,null,null,null,null,null,null,0,null,null,{"$error":"#DIV/0!"},null,{"$error":"#DIV/0!"}]
[null,null,null,null,null,null,null,0,null,null,{"$error":"#DIV/0!"},null,{"$error":"#DIV/0!"}]
[null,null,null,null,null,null,null,0,null,null,{"$error":"#DIV/0!"},null,{"$error":"#DIV/0!"}]
[null,null,null,null,null,null,null,0,null,null,{"$error":"#DIV/0!"},null,{"$error":"#DIV/0!"}]
[null,null,null,null,null,null,null,0,null,null,{"$error":"#DIV/0!"},null,{"$error":"#DIV/0!"}]
[null,null,null,null,null,null,null,0,null,null,{"$error":"#DIV/0!"},null,{"$error":"#DIV/0!"}]
[null,null,null,null,null,null,null,0,null,null,{"$error":"#DIV/0!"},null,{"$error":"#DIV/0!"}]
[null,null,null,null,null,null,null,0,null,null,{"$error":"#DIV/0!"},null,{"$error":"#DIV/0!"}]
[null,null,null,null,null,null,null,0,null,null,{"$error":"#DIV/0!"},null,{"$error":"#DIV/0!"}]
[null,null,null,null,null,null,null,0,null,null,{"$error":"#DIV/0!"},null,{"$error":"#DIV/0!"}]
[null,null,null,null,null,null,null,0,null,null,{"$error":"#DIV/0!"},null,{"$error":"#DIV/0!"}]
[null,null,null,null,null,null,null,0,null,null,{"$error":"#DIV/0!"},null,{"$error":"#DIV/0!"}]
[null,null,null,null,null,null,null,0,null,null,{"$error":"#DIV/0!"},null,{"$error":"#DIV/0!"}]
[null,null,null,null,null,null,null,0,null,null,{"$error":"#DIV/0!"},null,{"$error":"#DIV/0!"}]
[null,null,null,null,null,null,null,0,null,null,{"$error":"#DIV/0!"},null,{"$error":"#DIV/0!"}]
[null,null,null,null,null,null,null,0,null,null,{"$error":"#DIV/0!"},null,{"$error":"#DIV/0!"}]
[null,null,null,null,null,null,null,0,null,null,{"$error":"#DIV/0!"},null,{"$error":"#DIV/0!"}]
[null,null,null,null,null,null,null,0,null,null,{"$error":"#DIV/0!"},null,{"$error":"#DIV/0!"}]
[null,null,null,null,null,null,null,0,null,null,{"$error":"#DIV/0!"},null,{"$error":"#DIV/0!"}]
[null,null,null,null,null,null,null,0,null,null,{"$error":"#DIV/0!"},null,{"$error":"#DIV/0!"}]
[null,null,null,null,null,null,null,0,null,null,{"$error":"#DIV/0!"},null,{"$error":"#DIV/0!"}]
[null,null,null,null,null,null,null,0,null,null,{"$error":"#DIV/0!"},null,{"$error":"#DIV/0!"}]
[null,null,null,null,null,null,null,0,null,null,{"$error":"#DIV/0!"},null,{"$error":"#DIV/0!"}]
[null,null,null,null,null,null,null,0,null,null,{"$error":"#DIV/0!"},null,{"$error":"#DIV/0!"}]
[null,null,null,null,null,null,null,0,null,null,{"$error":"#DIV/0!"},null,{"$error":"#DIV/0!"}]
[null,null,null,null,null,null,null,0,null,null,{"$error":"#DIV/0!"},null,{"$error":"#DIV/0!"}]
[null,null,null,null,null,null,null,0,null,null,{"$error":"#DIV/0!"},null,{"$error":"#DIV/0!"}]
[null,null,null,null,null,null,null,0,null,null,{"$error":"#DIV/0!"},null,{"$error":"#DIV/0!"}]
[null,null,null,null,null,null,null,0,null,null,{"$error":"#DIV/0!"},null,{"$error":"#DIV/0!"}]
[null,null,null,null,null,null,null,0,null,null,{"$error":"#DIV/0!"},null,{"$error":"#DIV/0!"}]
[null,null,null,null,null,null,null,0,null,null,{"$error":"#DIV/0!"},null,{"$error":"#DIV/0!"}]
[null,null,null,null,null,null,null,0,null,null,{"$error":"#DIV/0!"},null,{"$error":"#DIV/0!"}]
[null,null,null,null,null,null,null,0,null,null,{"$error":"#DIV/0!"},null,{"$error":"#DIV/0!"}]
[null,null,null,null,null,null,null,0,null,null,{"$error":"#DIV/0!"},null,{"$error":"#DIV/0!"}]
[null,null,null,null,null,null,null,0,null,null,{"$error":"#DIV/0!"},null,{"$error":"#DIV/0!"}]
[null,null,null,null,null,null,null,0,null,null,{"$error":"#DIV/0!"},null,{"$error":"#DIV/0!"}]
[null,null,null,null,null,null,null,0,null,null,{"$error":"#DIV/0!"},null,{"$error":"#DIV/0!"}]
[null,null,null,null,null,null,null,0,null,null,{"$error":"#DIV/0!"},null,{"$error":"#DIV/0!"}]
[null,null,null,null,null,null,null,0,null,null,{"$error":"#DIV/0!"},null,{"$error":"#DIV/0!"}]
[null,null,null,null,null,null,null,0,null,null,{"$error":"#DIV/0!"},null,{"$error":"#DIV/0!"}]
[null,null,null,null,null,null,null,0,null,null,{"$error":"#DIV/0!"},null,{"$error":"#DIV/0!"}]
[null,null,null,null,null,null,null,0,null,null,{"$error":"#DIV/0!"},null,{"$error":"#DIV/0!"}]
[null,null,null,null,null,null,null,0,null,null,{"$error":"#DIV/0!"},null,{"$error":"#DIV/0!"}]
[null,null,null,null,null,null,null,0,null,null,{"$error":"#DIV/0!"},null,{"$error":"#DIV/0!"}]
[null,null,null,null,null,null,null,0,null,null,{"$error":"#DIV/0!"},null,{"$error":"#DIV/0!"}]
[null,null,null,null,null,null,null,0,null,null,{"$error":"#DIV/0!"},null,{"$error":"#DIV/0!"}]
[null,null,null,null,null,null,null,0,null,null,{"$error":"#DIV/0!"},null,{"$error":"#DIV/0!"}]
[null,null,null,null,null,null,null,0,null,null,{"$error":"#DIV/0!"},null,{"$error":"#DIV/0!"}]
[null,null,null,null,null,null,null,0,null,null,{"$error":"#DIV/0!"},null,{"$error":"#DIV/0!"}]
[null,null,null,null,null,null,null,0,null,null,{"$error":"#DIV/0!"},null,{"$error":"#DIV/0!"}]
[null,null,null,null,null,null,null,0,null,null,{"$error":"#DIV/0!"},null,{"$error":"#DIV/0!"}]
[null,null,null,null,null,null,null,0,null,null,{"$error":"#DIV/0!"},null,{"$error":"#DIV/0!"}]
[null,null,null,null,null,null,null,0,null,null,{"$error":"#DIV/0!"},null,{"$error":"#DIV/0!"}]
[null,null,null,null,null,null,null,0,null,null,{"$error":"#DIV/0!"},null,{"$error":"#DIV/0!"}]
[null,null,null,null,null,null,null,0,null,null,{"$error":"#DIV/0!"},null,{"$error":"#DIV/0!"}]
[null,null,null,null,null,null,null,0,null,null,{"$error":"#DIV/0!"},null,{"$error":"#DIV/0!"}]
[null,null,null,null,null,null,null,0,null,null,{"$error":"#DIV/0!"},null,{"$error":"#DIV/0!"}]
[null,null,null,null,null,null,null,0,null,null,{"$error":"#DIV/0!"},null,{"$error":"#DIV/0!"}]
[null,null,null,null,null,null,null,0,null,null,{"$f":"H132/J132","v":{"$error":"#DIV/0!"}},null,{"$f":"(L132-K132)*J132","v":{"$error":"#DIV/0!"}}]
[null,null,null,null,null,null,null,{"$f":"D133+E133-F133-G133","v":0},null,null,{"$error":"#DIV/0!"},null,{"$error":"#DIV/0!"}]
[null,null,null,null,null,null,null,0,null,null,{"$error":"#DIV/0!"},null,{"$error":"#DIV/0!"}]
[null,null,null,null,null,null,null,0,null,null,{"$error":"#DIV/0!"},null,{"$error":"#DIV/0!"}]
[null,null,null,null,null,null,null,0,null,null,{"$error":"#DIV/0!"},null,{"$error":"#DIV/0!"}]
[null,null,null,null,null,null,null,0,null,null,{"$error":"#DIV/0!"},null,{"$error":"#DIV/0!"}]
[null,null,null,null,null,null,null,0,null,null,{"$error":"#DIV/0!"},null,{"$error":"#DIV/0!"}]
[null,null,null,null,null,null,null,0,null,null,{"$error":"#DIV/0!"},null,{"$error":"#DIV/0!"}]
[null,null,null,null,null,null,null,0,null,null,{"$error":"#DIV/0!"},null,{"$error":"#DIV/0!"}]
[null,null,null,null,null,null,null,0,null,null,{"$error":"#DIV/0!"},null,{"$error":"#DIV/0!"}]
[null,null,null,null,null,null,null,0,null,null,{"$error":"#DIV/0!"},null,{"$error":"#DIV/0!"}]
[null,null,null,null,null,null,null,0,null,null,{"$error":"#DIV/0!"},null,{"$error":"#DIV/0!"}]
[null,null,null,null,null,null,null,0,null,null,{"$error":"#DIV/0!"},null,{"$error":"#DIV/0!"}]
[null,null,null,null,null,null,null,0,null,null,{"$error":"#DIV/0!"},null,{"$error":"#DIV/0!"}]
[null,null,null,null,null,null,null,0,null,null,{"$error":"#DIV/0!"},null,{"$error":"#DIV/0!"}]
[null,null,null,null,null,null,null,0,null,null,{"$error":"#DIV/0!"},null,{"$error":"#DIV/0!"}]
[null,null,null,null,null,null,null,0,null,null,{"$error":"#DIV/0!"},null,{"$error":"#DIV/0!"}]
[null,null,null,null,null,null,null,0,null,null,{"$error":"#DIV/0!"},null,{"$error":"#DIV/0!"}]
[null,null,null,null,null,null,null,0,null,null,{"$error":"#DIV/0!"},null,{"$error":"#DIV/0!"}]
[null,null,null,null,null,null,null,0,null,null,{"$error":"#DIV/0!"},null,{"$error":"#DIV/0!"}]
[null,null,null,null,null,null,null,0,null,null,{"$error":"#DIV/0!"},null,{"$error":"#DIV/0!"}]
[null,null,null,null,null,null,null,0,null,null,{"$error":"#DIV/0!"},null,{"$error":"#DIV/0!"}]
[null,null,null,null,null,null,null,0,null,null,{"$error":"#DIV/0!"},null,{"$error":"#DIV/0!"}]
[null,null,null,null,null,null,null,0,null,null,{"$error":"#DIV/0!"},null,{"$error":"#DIV/0!"}]
[null,null,null,null,null,null,null,0,null,null,{"$error":"#DIV/0!"},null,{"$error":"#DIV/0!"}]
[null,null,null,null,null,null,null,0,null,null,{"$error":"#DIV/0!"},null,{"$error":"#DIV/0!"}]
[null,null,null,null,null,null,null,0,null,null,{"$error":"#DIV/0!"},null,{"$error":"#DIV/0!"}]
[null,null,null,null,null,null,null,0,null,null,{"$error":"#DIV/0!"},null,{"$error":"#DIV/0!"}]
[null,null,null,null,null,null,null,0,null,null,{"$error":"#DIV/0!"},null,{"$error":"#DIV/0!"}]
[null,null,null,null,null,null,null,0,null,null,{"$error":"#DIV/0!"},null,{"$error":"#DIV/0!"}]
[null,null,null,null,null,null,null,0,null,null,{"$error":"#DIV/0!"},null,{"$error":"#DIV/0!"}]
[null,null,null,null,null,null,null,0,null,null,{"$error":"#DIV/0!"},null,{"$error":"#DIV/0!"}]
[null,null,null,null,null,null,null,0,null,null,{"$error":"#DIV/0!"},null,{"$error":"#DIV/0!"}]
[null,null,null,null,null,null,null,0,null,null,{"$error":"#DIV/0!"},null,{"$error":"#DIV/0!"}]
[null,null,null,null,null,null,null,0,null,null,{"$error":"#DIV/0!"},null,{"$error":"#DIV/0!"}]
[null,null,null,null,null,null,null,0,null,null,{"$error":"#DIV/0!"},null,{"$error":"#DIV/0!"}]
[null,null,null,null,null,null,null,0,null,null,{"$error":"#DIV/0!"},null,{"$error":"#DIV/0!"}]
[null,null,null,null,null,null,null,0,null,null,{"$error":"#DIV/0!"},null,{"$error":"#DIV/0!"}]
[null,null,null,null,null,null,null,0,null,null,{"$error":"#DIV/0!"},null,{"$error":"#DIV/0!"}]
[null,null,null,null,null,null,null,0,null,null,{"$error":"#DIV/0!"},null,{"$error":"#DIV/0!"}]
[null,null,null,null,null,null,null,0,null,null,{"$error":"#DIV/0!"},null,{"$error":"#DIV/0!"}]
[null,null,null,null,null,null,null,0,null,null,{"$error":"#DIV/0!"},null,{"$error":"#DIV/0!"}]
[null,null,null,null,null,null,null,0,null,null,{"$error":"#DIV/0!"},null,{"$error":"#DIV/0!"}]
[null,null,null,null,null,null,null,0,null,null,{"$error":"#DIV/0!"},null,{"$error":"#DIV/0!"}]
[null,null,null,null,null,null,null,0,null,null,{"$error":"#DIV/0!"},null,{"$error":"#DIV/0!"}]
[null,null,null,null,null,null,null,0,null,null,{"$error":"#DIV/0!"},null,{"$error":"#DIV/0!"}]
[null,null,null,null,null,null,null,0,null,null,{"$error":"#DIV/0!"},null,{"$error":"#DIV/0!"}]
[null,null,null,null,null,null,null,0,null,null,{"$error":"#DIV/0!"},null,{"$error":"#DIV/0!"}]
[null,null,null,null,null,null,null,0,null,null,{"$error":"#DIV/0!"},null,{"$error":"#DIV/0!"}]
[null,null,null,null,null,null,null,0,null,null,{"$error":"#DIV/0!"},null,{"$error":"#DIV/0!"}]
[null,null,null,null,null,null,null,0,null,null,{"$error":"#DIV/0!"},null,{"$error":"#DIV/0!"}]
[null,null,null,null,null,null,null,0,null,null,{"$error":"#DIV/0!"},null,{"$error":"#DIV/0!"}]
[null,null,null,null,null,null,null,0,null,null,{"$error":"#DIV/0!"},null,{"$error":"#DIV/0!"}]
[null,null,null,null,null,null,null,0,null,null,{"$error":"#DIV/0!"},null,{"$error":"#DIV/0!"}]
[null,null,null,null,null,null,null,0,null,null,{"$error":"#DIV/0!"},null,{"$error":"#DIV/0!"}]
[null,null,null,null,null,null,null,0,null,null,{"$error":"#DIV/0!"},null,{"$error":"#DIV/0!"}]
[null,null,null,null,null,null,null,0,null,null,{"$error":"#DIV/0!"},null,{"$error":"#DIV/0!"}]
[null,null,null,null,null,null,null,0,null,null,{"$error":"#DIV/0!"},null,{"$error":"#DIV/0!"}]
[null,null,null,null,null,null,null,0,null,null,{"$error":"#DIV/0!"},null,{"$error":"#DIV/0!"}]
[null,null,null,null,null,null,null,0,null,null,{"$error":"#DIV/0!"},null,{"$error":"#DIV/0!"}]
[null,null,null,null,null,null,null,0,null,null,{"$error":"#DIV/0!"},null,{"$error":"#DIV/0!"}]
[null,null,null,null,null,null,null,0,null,null,{"$error":"#DIV/0!"},null,{"$error":"#DIV/0!"}]
[null,null,null,null,null,null,null,0,null,null,{"$error":"#DIV/0!"},null,{"$error":"#DIV/0!"}]
[null,null,null,null,null,null,null,0,null,null,{"$error":"#DIV/0!"},null,{"$error":"#DIV/0!"}]
[null,null,null,null,null,null,null,0,null,null,{"$f":"H196/J196","v":{"$error":"#DIV/0!"}},null,{"$f":"(L196-K196)*J196","v":{"$error":"#DIV/0!"}}]
[null,null,null,null,null,null,null,{"$f":"D197+E197-F197-G197","v":0},null,null,{"$error":"#DIV/0!"},null,{"$error":"#DIV/0!"}]
[null,null,null,null,null,null,null,0,null,null,{"$error":"#DIV/0!"},null,{"$error":"#DIV/0!"}]
[null,null,null,null,null,null,null,0,null,null,{"$error":"#DIV/0!"},null,{"$error":"#DIV/0!"}]
[null,null,null,null,null,null,null,0,null,null,{"$error":"#DIV/0!"},null,{"$error":"#DIV/0!"}]
[null,null,null,null,null,null,null,0,null,null,{"$error":"#DIV/0!"},null,{"$error":"#DIV/0!"}]
[null,null,null,null,null,null,null,0,null,null,{"$error":"#DIV/0!"},null,{"$error":"#DIV/0!"}]
[null,null,null,null,null,null,null,0,null,null,{"$error":"#DIV/0!"},null,{"$error":"#DIV/0!"}]
[null,null,null,null,null,null,null,0,null,null,{"$error":"#DIV/0!"},null,{"$error":"#DIV/0!"}]
[null,null,null,null,null,null,null,0,null,null,{"$error":"#DIV/0!"},null,{"$error":"#DIV/0!"}]
[null,null,null,null,null,null,null,0,null,null,{"$error":"#DIV/0!"},null,{"$error":"#DIV/0!"}]
[null,null,null,null,null,null,null,0,null,null,{"$error":"#DIV/0!"},null,{"$error":"#DIV/0!"}]
[null,null,null,null,null,null,null,0,null,null,{"$error":"#DIV/0!"},null,{"$error":"#DIV/0!"}]
[null,null,null,null,null,null,null,0,null,null,{"$error":"#DIV/0!"},null,{"$error":"#DIV/0!"}]
[null,null,null,null,null,null,null,0,null,null,{"$error":"#DIV/0!"},null,{"$error":"#DIV/0!"}]
[null,null,null,null,null,null,null,0,null,null,{"$error":"#DIV/0!"},null,{"$error":"#DIV/0!"}]
[null,null,null,null,null,null,null,0,null,null,{"$error":"#DIV/0!"},null,{"$error":"#DIV/0!"}]
[null,null,null,null,null,null,null,0,null,null,{"$error":"#DIV/0!"},null,{"$error":"#DIV/0!"}]
[null,null,null,null,null,null,null,0,null,null,{"$error":"#DIV/0!"},null,{"$error":"#DIV/0!"}]
[null,null,null,null,null,null,null,0,null,null,{"$error":"#DIV/0!"},null,{"$error":"#DIV/0!"}]
[null,null,null,null,null,null,null,0,null,null,{"$error":"#DIV/0!"},null,{"$error":"#DIV/0!"}]
[null,null,null,null,null,null,null,0,null,null,{"$error":"#DIV/0!"},null,{"$error":"#DIV/0!"}]
[null,null,null,null,null,null,null,0,null,null,{"$error":"#DIV/0!"},null,{"$error":"#DIV/0!"}]
[null,null,null,null,null,null,null,0,null,null,{"$error":"#DIV/0!"},null,{"$error":"#DIV/0!"}]
[null,null,null,null,null,null,null,0,null,null,{"$error":"#DIV/0!"},null,{"$error":"#DIV/0!"}]
[null,null,null,null,null,null,null,0,null,null,{"$error":"#DIV/0!"},null,{"$error":"#DIV/0!"}]
[null,null,null,null,null,null,null,0,null,null,{"$error":"#DIV/0!"},null,{"$error":"#DIV/0!"}]
[null,null,null,null,null,null,null,0,null,null,{"$error":"#DIV/0!"},null,{"$error":"#DIV/0!"}]
[null,null,null,null,null,null,null,0,null,null,{"$error":"#DIV/0!"},null,{"$error":"#DIV/0!"}]
[null,null,null,null,null,null,null,0,null,null,{"$error":"#DIV/0!"},null,{"$error":"#DIV/0!"}]
[null,null,null,null,null,null,null,0,null,null,{"$error":"#DIV/0!"},null,{"$error":"#DIV/0!"}]
[null,null,null,null,null,null,null,0,null,null,{"$error":"#DIV/0!"},null,{"$error":"#DIV/0!"}]
[null,null,null,null,null,null,null,0,null,null,{"$error":"#DIV/0!"},null,{"$error":"#DIV/0!"}]
[null,null,null,null,null,null,null,0,null,null,{"$error":"#DIV/0!"},null,{"$error":"#DIV/0!"}]
[null,null,null,null,null,null,null,0,null,null,{"$error":"#DIV/0!"},null,{"$error":"#DIV/0!"}]
[null,null,null,null,null,null,null,0,null,null,{"$error":"#DIV/0!"},null,{"$error":"#DIV/0!"}]
[null,null,null,null,null,null,null,0,null,null,{"$error":"#DIV/0!"},null,{"$error":"#DIV/0!"}]
[null,null,null,null,null,null,null,0,null,null,{"$error":"#DIV/0!"},null,{"$error":"#DIV/0!"}]
[null,null,null,null,null,null,null,0,null,null,{"$error":"#DIV/0!"},null,{"$error":"#DIV/0!"}]
[null,null,null,null,null,null,null,0,null,null,{"$error":"#DIV/0!"},null,{"$error":"#DIV/0!"}]
[null,null,null,null,null,null,null,0,null,null,{"$error":"#DIV/0!"},null,{"$error":"#DIV/0!"}]
[null,null,null,null,null,null,null,0,null,null,{"$error":"#DIV/0!"},null,{"$error":"#DIV/0!"}]
[null,null,null,null,null,null,null,0,null,null,{"$error":"#DIV/0!"},null,{"$error":"#DIV/0!"}]
[null,null,null,null,null,null,null,0,null,null,{"$error":"#DIV/0!"},null,{"$error":"#DIV/0!"}]
[null,null,null,null,null,null,null,0,null,null,{"$error":"#DIV/0!"},null,{"$error":"#DIV/0!"}]
[null,null,null,null,null,null,null,0,null,null,{"$error":"#DIV/0!"},null,{"$error":"#DIV/0!"}]
[null,null,null,null,null,null,null,0,null,null,{"$error":"#DIV/0!"},null,{"$error":"#DIV/0!"}]
[null,null,null,null,null,null,null,0,null,null,{"$error":"#DIV/0!"},null,{"$error":"#DIV/0!"}]
[null,null,null,null,null,null,null,0,null,null,{"$error":"#DIV/0!"},null,{"$error":"#DIV/0!"}]
[null,null,null,null,null,null,null,0,null,null,{"$error":"#DIV/0!"},null,{"$error":"#DIV/0!"}]
[null,null,null,null,null,null,null,0,null,null,{"$error":"#DIV/0!"},null,{"$error":"#DIV/0!"}]
[null,null,null,null,null,null,null,0,null,null,{"$error":"#DIV/0!"},null,{"$error":"#DIV/0!"}]
[null,null,null,null,null,null,null,0,null,null,{"$error":"#DIV/0!"},null,{"$error":"#DIV/0!"}]
[null,null,null,null,null,null,null,0,null,null,{"$error":"#DIV/0!"},null,{"$error":"#DIV/0!"}]
[null,null,null,null,null,null,null,0,null,null,{"$error":"#DIV/0!"},null,{"$error":"#DIV/0!"}]
[null,null,null,null,null,null,null,0,null,null,{"$error":"#DIV/0!"},null,{"$error":"#DIV/0!"}]
[null,null,null,null,null,null,null,0,null,null,{"$error":"#DIV/0!"},null,{"$error":"#DIV/0!"}]
[null,null,null,null,null,null,null,0,null,null,{"$error":"#DIV/0!"},null,{"$error":"#DIV/0!"}]
[null,null,null,null,null,null,null,0,null,null,{"$error":"#DIV/0!"},null,{"$error":"#DIV/0!"}]
[null,null,null,null,null,null,null,0,null,null,{"$error":"#DIV/0!"},null,{"$error":"#DIV/0!"}]
[null,null,null,null,null,null,null,0,null,null,{"$error":"#DIV/0!"},null,{"$error":"#DIV/0!"}]
[null,null,null,null,null,null,null,0,null,null,{"$error":"#DIV/0!"},null,{"$error":"#DIV/0!"}]
[null,null,null,null,null,null,null,0,null,null,{"$error":"#DIV/0!"},null,{"$error":"#DIV/0!"}]
[null,null,null,null,null,null,null,0,null,null,{"$error":"#DIV/0!"},null,{"$error":"#DIV/0!"}]
[null,null,null,null,null,null,null,0,null,null,{"$f":"H260/J260","v":{"$error":"#DIV/0!"}},null,{"$f":"(L260-K260)*J260","v":{"$error":"#DIV/0!"}}]
[null,null,null,null,null,null,null,{"$f":"D261+E261-F261-G261","v":0},null,null,{"$error":"#DIV/0!"},null,{"$error":"#DIV/0!"}]
[null,null,null,null,null,null,null,0,null,null,{"$error":"#DIV/0!"},null,{"$error":"#DIV/0!"}]
[null,null,null,null,null,null,null,0,null,null,{"$error":"#DIV/0!"},null,{"$error":"#DIV/0!"}]
[null,null,null,null,null,null,null,0,null,null,{"$error":"#DIV/0!"},null,{"$error":"#DIV/0!"}]
[null,null,null,null,null,null,null,0,null,null,{"$error":"#DIV/0!"},null,{"$error":"#DIV/0!"}]
[null,null,null,null,null,null,null,0,null,null,{"$error":"#DIV/0!"},null,{"$error":"#DIV/0!"}]
[null,null,null,null,null,null,null,0,null,null,{"$error":"#DIV/0!"},null,{"$error":"#DIV/0!"}]
[null,null,null,null,null,null,null,0,null,null,{"$error":"#DIV/0!"},null,{"$error":"#DIV/0!"}]
[null,null,null,null,null,null,null,0,null,null,{"$error":"#DIV/0!"},null,{"$error":"#DIV/0!"}]
[null,null,null,null,null,null,null,0,null,null,{"$error":"#DIV/0!"},null,{"$error":"#DIV/0!"}]
[null,null,null,null,null,null,null,0,null,null,{"$error":"#DIV/0!"},null,{"$error":"#DIV/0!"}]
[null,null,null,null,null,null,null,0,null,null,{"$error":"#DIV/0!"},null,{"$error":"#DIV/0!"}]
[null,null,null,null,null,null,null,0,null,null,{"$error":"#DIV/0!"},null,{"$error":"#DIV/0!"}]
[null,null,null,null,null,null,null,0,null,null,{"$error":"#DIV/0!"},null,{"$error":"#DIV/0!"}]
[null,null,null,null,null,null,null,0,null,null,{"$error":"#DIV/0!"},null,{"$error":"#DIV/0!"}]
[null,null,null,null,null,null,null,0,null,null,{"$error":"#DIV/0!"},null,{"$error":"#DIV/0!"}]
[null,null,null,null,null,null,null,0,null,null,{"$error":"#DIV/0!"},null,{"$error":"#DIV/0!"}]
[null,null,null,null,null,null,null,0,null,null,{"$error":"#DIV/0!"},null,{"$error":"#DIV/0!"}]
[null,null,null,null,null,null,null,0,null,null,{"$error":"#DIV/0!"},null,{"$error":"#DIV/0!"}]
[null,null,null,null,null,null,null,0,null,null,{"$error":"#DIV/0!"},null,{"$error":"#DIV/0!"}]
[null,null,null,null,null,null,null,0,null,null,{"$error":"#DIV/0!"},null,{"$error":"#DIV/0!"}]
[null,null,null,null,null,null,null,0,null,null,{"$error":"#DIV/0!"},null,{"$error":"#DIV/0!"}]
[null,null,null,null,null,null,null,0,null,null,{"$error":"#DIV/0!"},null,{"$error":"#DIV/0!"}]
[null,null,null,null,null,null,null,0,null,null,{"$error":"#DIV/0!"},null,{"$error":"#DIV/0!"}]
[null,null,null,null,null,null,null,0,null,null,{"$error":"#DIV/0!"},null,{"$error":"#DIV/0!"}]
[null,null,null,null,null,null,null,0,null,null,{"$error":"#DIV/0!"},null,{"$error":"#DIV/0!"}]
[null,null,null,null,null,null,null,0,null,null,{"$error":"#DIV/0!"},null,{"$error":"#DIV/0!"}]
[null,null,null,null,null,null,null,0,null,null,{"$error":"#DIV/0!"},null,{"$error":"#DIV/0!"}]
[null,null,null,null,null,null,null,0,null,null,{"$error":"#DIV/0!"},null,{"$error":"#DIV/0!"}]
[null,null,null,null,null,null,null,0,null,null,{"$error":"#DIV/0!"},null,{"$error":"#DIV/0!"}]
[null,null,null,null,null,null,null,0,null,null,{"$error":"#DIV/0!"},null,{"$error":"#DIV/0!"}]
[null,null,null,null,null,null,null,0,null,null,{"$error":"#DIV/0!"},null,{"$error":"#DIV/0!"}]
[null,null,null,null,null,null,null,0,null,null,{"$error":"#DIV/0!"},null,{"$error":"#DIV/0!"}]
[null,null,null,null,null,null,null,0,null,null,{"$error":"#DIV/0!"},null,{"$error":"#DIV/0!"}]
[null,null,null,null,null,null,null,0,null,null,{"$error":"#DIV/0!"},null,{"$error":"#DIV/0!"}]
[null,null,null,null,null,null,null,0,null,null,{"$error":"#DIV/0!"},null,{"$error":"#DIV/0!"}]
[null,null,null,null,null,null,null,0,null,null,{"$error":"#DIV/0!"},null,{"$error":"#DIV/0!"}]
[null,null,null,null,null,null,null,0,null,null,{"$error":"#DIV/0!"},null,{"$error":"#DIV/0!"}]
[null,null,null,null,null,null,null,0,null,null,{"$error":"#DIV/0!"},null,{"$error":"#DIV/0!"}]
[null,null,null,null,null,null,null,0,null,null,{"$error":"#DIV/0!"},null,{"$error":"#DIV/0!"}]
[null,null,null,null,null,null,null,0,null,null,{"$error":"#DIV/0!"},null,{"$error":"#DIV/0!"}]
[null,null,null,null,null,null,null,0,null,null,{"$error":"#DIV/0!"},null,{"$error":"#DIV/0!"}]
[null,null,null,null,null,null,null,0,null,null,{"$error":"#DIV/0!"},null,{"$error":"#DIV/0!"}]
[null,null,null,null,null,null,null,0,null,null,{"$error":"#DIV/0!"},null,{"$error":"#DIV/0!"}]
[null,null,null,null,null,null,null,0,null,null,{"$error":"#DIV/0!"},null,{"$error":"#DIV/0!"}]
[null,null,null,null,null,null,null,0,null,null,{"$error":"#DIV/0!"},null,{"$error":"#DIV/0!"}]
[null,null,null,null,null,null,null,0,null,null,{"$error":"#DIV/0!"},null,{"$error":"#DIV/0!"}]
[null,null,null,null,null,null,null,0,null,null,{"$error":"#DIV/0!"},null,{"$error":"#DIV/0!"}]
[null,null,null,null,null,null,null,0,null,null,{"$error":"#DIV/0!"},null,{"$error":"#DIV/0!"}]
[null,null,null,null,null,null,null,0,null,null,{"$error":"#DIV/0!"},null,{"$error":"#DIV/0!"}]
[null,null,null,null,null,null,null,0,null,null,{"$error":"#DIV/0!"},null,{"$error":"#DIV/0!"}]
[null,null,null,null,null,null,null,0,null,null,{"$error":"#DIV/0!"},null,{"$error":"#DIV/0!"}]
[null,null,null,null,null,null,null,0,null,null,{"$error":"#DIV/0!"},null,{"$error":"#DIV/0!"}]
[null,null,null,null,null,null,null,0,null,null,{"$error":"#DIV/0!"},null,{"$error":"#DIV/0!"}]
[null,null,null,null,null,null,null,0,null,null,{"$error":"#DIV/0!"},null,{"$error":"#DIV/0!"}]
[null,null,null,null,null,null,null,0,null,null,{"$error":"#DIV/0!"},null,{"$error":"#DIV/0!"}]
[null,null,null,null,null,null,null,0,null,null,{"$error":"#DIV/0!"},null,{"$error":"#DIV/0!"}]
[null,null,null,null,null,null,null,0,null,null,{"$error":"#DIV/0!"},null,{"$error":"#DIV/0!"}]
[null,null,null,null,null,null,null,0,null,null,{"$error":"#DIV/0!"},null,{"$error":"#DIV/0!"}]
[null,null,null,null,null,null,null,0,null,null,{"$error":"#DIV/0!"},null,{"$error":"#DIV/0!"}]
[null,null,null,null,null,null,null,0,null,null,{"$error":"#DIV/0!"},null,{"$error":"#DIV/0!"}]
[null,null,null,null,null,null,null,0,null,null,{"$error":"#DIV/0!"},null,{"$error":"#DIV/0!"}]
[null,null,null,null,null,null,null,0,null,null,{"$error":"#DIV/0!"},null,{"$error":"#DIV/0!"}]
[null,null,null,null,null,null,null,0,null,null,{"$f":"H324/J324","v":{"$error":"#DIV/0!"}},null,{"$f":"(L324-K324)*J324","v":{"$error":"#DIV/0!"}}]
[null,null,null,null,null,null,null,{"$f":"D325+E325-F325-G325","v":0},null,null,{"$error":"#DIV/0!"},null,{"$error":"#DIV/0!"}]
[null,null,null,null,null,null,null,0,null,null,{"$error":"#DIV/0!"},null,{"$error":"#DIV/0!"}]
[null,null,null,null,null,null,null,0,null,null,{"$error":"#DIV/0!"},null,{"$error":"#DIV/0!"}]
[null,null,null,null,null,null,null,0,null,null,{"$error":"#DIV/0!"},null,{"$error":"#DIV/0!"}]
[null,null,null,null,null,null,null,0,null,null,{"$error":"#DIV/0!"},null,{"$error":"#DIV/0!"}]
[null,null,null,null,null,null,null,0,null,null,{"$error":"#DIV/0!"},null,{"$error":"#DIV/0!"}]
[null,null,null,null,null,null,null,0,null,null,{"$error":"#DIV/0!"},null,{"$error":"#DIV/0!"}]
[null,null,null,null,null,null,null,0,null,null,{"$error":"#DIV/0!"},null,{"$error":"#DIV/0!"}]
[null,null,null,null,null,null,null,0,null,null,{"$error":"#DIV/0!"},null,{"$error":"#DIV/0!"}]
[null,null,null,null,null,null,null,0,null,null,{"$error":"#DIV/0!"},null,{"$error":"#DIV/0!"}]
[null,null,null,null,null,null,null,0,null,null,{"$error":"#DIV/0!"},null,{"$error":"#DIV/0!"}]
[null,null,null,null,null,null,null,0,null,null,{"$error":"#DIV/0!"},null,{"$error":"#DIV/0!"}]
[null,null,null,null,null,null,null,0,null,null,{"$error":"#DIV/0!"},null,{"$error":"#DIV/0!"}]
[null,null,null,null,null,null,null,0,null,null,{"$error":"#DIV/0!"},null,{"$error":"#DIV/0!"}]
[null,null,null,null,null,null,null,0,null,null,{"$error":"#DIV/0!"},null,{"$error":"#DIV/0!"}]
[null,null,null,null,null,null,null,0,null,null,{"$error":"#DIV/0!"},null,{"$error":"#DIV/0!"}]
[null,null,null,null,null,null,null,0,null,null,{"$error":"#DIV/0!"},null,{"$error":"#DIV/0!"}]
[null,null,null,null,null,null,null,0,null,null,{"$error":"#DIV/0!"},null,{"$error":"#DIV/0!"}]
[null,null,null,null,null,null,null,0,null,null,{"$error":"#DIV/0!"},null,{"$error":"#DIV/0!"}]
[null,null,null,null,null,null,null,0,null,null,{"$error":"#DIV/0!"},null,{"$error":"#DIV/0!"}]
[null,null,null,null,null,null,null,0,null,null,{"$error":"#DIV/0!"},null,{"$error":"#DIV/0!"}]
[null,null,null,null,null,null,null,0,null,null,{"$error":"#DIV/0!"},null,{"$error":"#DIV/0!"}]
[null,null,null,null,null,null,null,0,null,null,{"$error":"#DIV/0!"},null,{"$error":"#DIV/0!"}]
[null,null,null,null,null,null,null,0,null,null,{"$error":"#DIV/0!"},null,{"$error":"#DIV/0!"}]
[null,null,null,null,null,null,null,0,null,null,{"$error":"#DIV/0!"},null,{"$error":"#DIV/0!"}]
[null,null,null,null,null,null,null,0,null,null,{"$error":"#DIV/0!"},null,{"$error":"#DIV/0!"}]
[null,null,null,null,null,null,null,0,null,null,{"$error":"#DIV/0!"},null,{"$error":"#DIV/0!"}]
[null,null,null,null,null,null,null,0,null,null,{"$error":"#DIV/0!"},null,{"$error":"#DIV/0!"}]
[null,null,null,null,null,null,null,0,null,null,{"$error":"#DIV/0!"},null,{"$error":"#DIV/0!"}]
[null,null,null,null,null,null,null,0,null,null,{"$error":"#DIV/0!"},null,{"$error":"#DIV/0!"}]
[null,null,null,null,null,null,null,0,null,null,{"$error":"#DIV/0!"},null,{"$error":"#DIV/0!"}]
[null,null,null,null,null,null,null,0,null,null,{"$error":"#DIV/0!"},null,{"$error":"#DIV/0!"}]
[null,null,null,null,null,null,null,0,null,null,{"$error":"#DIV/0!"},null,{"$error":"#DIV/0!"}]
[null,null,null,null,null,null,null,0,null,null,{"$error":"#DIV/0!"},null,{"$error":"#DIV/0!"}]
[null,null,null,null,null,null,null,0,null,null,{"$error":"#DIV/0!"},null,{"$error":"#DIV/0!"}]
[null,null,null,null,null,null,null,0,null,null,{"$error":"#DIV/0!"},null,{"$error":"#DIV/0!"}]
[null,null,null,null,null,null,null,0,null,null,{"$error":"#DIV/0!"},null,{"$error":"#DIV/0!"}]
[null,null,null,null,null,null,null,0,null,null,{"$error":"#DIV/0!"},null,{"$error":"#DIV/0!"}]
[null,null,null,null,null,null,null,0,null,null,{"$error":"#DIV/0!"},null,{"$error":"#DIV/0!"}]
[null,null,null,null,null,null,null,0,null,null,{"$error":"#DIV/0!"},null,{"$error":"#DIV/0!"}]
[null,null,null,null,null,null,null,0,null,null,{"$error":"#DIV/0!"},null,{"$error":"#DIV/0!"}]
[null,null,null,null,null,null,null,0,null,null,{"$error":"#DIV/0!"},null,{"$error":"#DIV/0!"}]
[null,null,null,null,null,null,null,0,null,null,{"$error":"#DIV/0!"},null,{"$error":"#DIV/0!"}]
[null,null,null,null,null,null,null,0,null,null,{"$error":"#DIV/0!"},null,{"$error":"#DIV/0!"}]
[null,null,null,null,null,null,null,0,null,null,{"$error":"#DIV/0!"},null,{"$error":"#DIV/0!"}]
[null,null,null,null,null,null,null,0,null,null,{"$error":"#DIV/0!"},null,{"$error":"#DIV/0!"}]
[null,null,null,null,null,null,null,0,null,null,{"$error":"#DIV/0!"},null,{"$error":"#DIV/0!"}]
[null,null,null,null,null,null,null,0,null,null,{"$error":"#DIV/0!"},null,{"$error":"#DIV/0!"}]
[null,null,null,null,null,null,null,0,null,null,{"$error":"#DIV/0!"},null,{"$error":"#DIV/0!"}]
[null,null,null,null,null,null,null,0,null,null,{"$error":"#DIV/0!"},null,{"$error":"#DIV/0!"}]
[null,null,null,null,null,null,null,0,null,null,{"$error":"#DIV/0!"},null,{"$error":"#DIV/0!"}]
[null,null,null,null,null,null,null,0,null,null,{"$error":"#DIV/0!"},null,{"$error":"#DIV/0!"}]
[null,null,null,null,null,null,null,0,null,null,{"$error":"#DIV/0!"},null,{"$error":"#DIV/0!"}]
[null,null,null,null,null,null,null,0,null,null,{"$error":"#DIV/0!"},null,{"$error":"#DIV/0!"}]
[null,null,null,null,null,null,null,0,null,null,{"$error":"#DIV/0!"},null,{"$error":"#DIV/0!"}]
[null,null,null,null,null,null,null,0,null,null,{"$error":"#DIV/0!"},null,{"$error":"#DIV/0!"}]
[null,null,null,null,null,null,null,0,null,null,{"$error":"#DIV/0!"},null,{"$error":"#DIV/0!"}]
[null,null,null,null,null,null,null,0,null,null,{"$error":"#DIV/0!"},null,{"$error":"#DIV/0!"}]
[null,null,null,null,null,null,null,0,null,null,{"$error":"#DIV/0!"},null,{"$error":"#DIV/0!"}]
[null,null,null,null,null,null,null,0,null,null,{"$error":"#DIV/0!"},null,{"$error":"#DIV/0!"}]
[null,null,null,null,null,null,null,0,null,null,{"$error":"#DIV/0!"},null,{"$error":"#DIV/0!"}]
[null,null,null,null,null,null,null,0,null,null,{"$error":"#DIV/0!"},null,{"$error":"#DIV/0!"}]
[null,null,null,null,null,null,null,0,null,null,{"$error":"#DIV/0!"},null,{"$error":"#DIV/0!"}]
[null,null,null,null,null,null,null,0,null,null,{"$f":"H388/J388","v":{"$error":"#DIV/0!"}},null,{"$f":"(L388-K388)*J388","v":{"$error":"#DIV/0!"}}]
[null,null,null,null,null,null,null,{"$f":"D389+E389-F389-G389","v":0},null,null,{"$error":"#DIV/0!"},null,{"$error":"#DIV/0!"}]
[null,null,null,null,null,null,null,0,null,null,{"$error":"#DIV/0!"},null,{"$error":"#DIV/0!"}]
[null,null,null,null,null,null,null,0,null,null,{"$error":"#DIV/0!"},null,{"$error":"#DIV/0!"}]
[null,null,null,null,null,null,null,0,null,null,{"$error":"#DIV/0!"},null,{"$error":"#DIV/0!"}]
[null,null,null,null,null,null,null,0,null,null,{"$error":"#DIV/0!"},null,{"$error":"#DIV/0!"}]
[null,null,null,null,null,null,null,0,null,null,{"$error":"#DIV/0!"},null,{"$error":"#DIV/0!"}]
[null,null,null,null,null,null,null,0,null,null,{"$error":"#DIV/0!"},null,{"$error":"#DIV/0!"}]
[null,null,null,null,null,null,null,0,null,null,{"$error":"#DIV/0!"},null,{"$error":"#DIV/0!"}]
[null,null,null,null,null,null,null,0,null,null,{"$error":"#DIV/0!"},null,{"$error":"#DIV/0!"}]
[null,null,null,null,null,null,null,0,null,null,{"$error":"#DIV/0!"},null,{"$error":"#DIV/0!"}]
[null,null,null,null,null,null,null,0,null,null,{"$error":"#DIV/0!"},null,{"$error":"#DIV/0!"}]
[null,null,null,null,null,null,null,0,null,null,{"$error":"#DIV/0!"},null,{"$error":"#DIV/0!"}]
[null,null,null,null,null,null,null,0,null,null,{"$error":"#DIV/0!"},null,{"$error":"#DIV/0!"}]
[null,null,null,null,null,null,null,0,null,null,{"$error":"#DIV/0!"},null,{"$error":"#DIV/0!"}]
[null,null,null,null,null,null,null,0,null,null,{"$error":"#DIV/0!"},null,{"$error":"#DIV/0!"}]
[null,null,null,null,null,null,null,0,null,null,{"$error":"#DIV/0!"},null,{"$error":"#DIV/0!"}]
[null,null,null,null,null,null,null,0,null,null,{"$error":"#DIV/0!"},null,{"$error":"#DIV/0!"}]
[null,null,null,null,null,null,null,0,null,null,{"$error":"#DIV/0!"},null,{"$error":"#DIV/0!"}]
[null,null,null,null,null,null,null,0,null,null,{"$error":"#DIV/0!"},null,{"$error":"#DIV/0!"}]
[null,null,null,null,null,null,null,0,null,null,{"$error":"#DIV/0!"},null,{"$error":"#DIV/0!"}]
[null,null,null,null,null,null,null,0,null,null,{"$error":"#DIV/0!"},null,{"$error":"#DIV/0!"}]
[null,null,null,null,null,null,null,0,null,null,{"$error":"#DIV/0!"},null,{"$error":"#DIV/0!"}]
[null,null,null,null,null,null,null,0,null,null,{"$error":"#DIV/0!"},null,{"$error":"#DIV/0!"}]
[null,null,null,null,null,null,null,0,null,null,{"$error":"#DIV/0!"},null,{"$error":"#DIV/0!"}]
[null,null,null,null,null,null,null,0,null,null,{"$error":"#DIV/0!"},null,{"$error":"#DIV/0!"}]
[null,null,null,null,null,null,null,0,null,null,{"$error":"#DIV/0!"},null,{"$error":"#DIV/0!"}]
[null,null,null,null,null,null,null,0,null,null,{"$error":"#DIV/0!"},null,{"$error":"#DIV/0!"}]
[null,null,null,null,null,null,null,0,null,null,{"$error":"#DIV/0!"},null,{"$error":"#DIV/0!"}]
[null,null,null,null,null,null,null,0,null,null,{"$error":"#DIV/0!"},null,{"$error":"#DIV/0!"}]
[null,null,null,null,null,null,null,0,null,null,{"$error":"#DIV/0!"},null,{"$error":"#DIV/0!"}]
[null,null,null,null,null,null,null,0,null,null,{"$error":"#DIV/0!"},null,{"$error":"#DIV/0!"}]
[null,null,null,null,null,null,null,0,null,null,{"$error":"#DIV/0!"},null,{"$error":"#DIV/0!"}]
[null,null,null,null,null,null,null,0,null,null,{"$error":"#DIV/0!"},null,{"$error":"#DIV/0!"}]
[null,null,null,null,null,null,null,0,null,null,{"$error":"#DIV/0!"},null,{"$error":"#DIV/0!"}]
[null,null,null,null,null,null,null,0,null,null,{"$error":"#DIV/0!"},null,{"$error":"#DIV/0!"}]
[null,null,null,null,null,null,null,0,null,null,{"$error":"#DIV/0!"},null,{"$error":"#DIV/0!"}]
[null,null,null,null,null,null,null,0,null,null,{"$error":"#DIV/0!"},null,{"$error":"#DIV/0!"}]
[null,null,null,null,null,null,null,0,null,null,{"$error":"#DIV/0!"},null,{"$error":"#DIV/0!"}]
[null,null,null,null,null,null,null,0,null,null,{"$error":"#DIV/0!"},null,{"$error":"#DIV/0!"}]
[null,null,null,null,null,null,null,0,null,null,{"$error":"#DIV/0!"},null,{"$error":"#DIV/0!"}]
[null,null,null,null,null,null,null,0,null,null,{"$error":"#DIV/0!"},null,{"$error":"#DIV/0!"}]
[null,null,null,null,null,null,null,0,null,null,{"$error":"#DIV/0!"},null,{"$error":"#DIV/0!"}]
[null,null,null,null,null,null,null,0,null,null,{"$error":"#DIV/0!"},null,{"$error":"#DIV/0!"}]
[null,null,null,null,null,null,null,0,null,null,{"$error":"#DIV/0!"},null,{"$error":"#DIV/0!"}]
[null,null,null,null,null,null,null,0,null,null,{"$error":"#DIV/0!"},null,{"$error":"#DIV/0!"}]
[null,null,null,null,null,null,null,0,null,null,{"$error":"#DIV/0!"},null,{"$error":"#DIV/0!"}]
[null,null,null,null,null,null,null,0,null,null,{"$error":"#DIV/0!"},null,{"$error":"#DIV/0!"}]
[null,null,null,null,null,null,null,0,null,null,{"$error":"#DIV/0!"},null,{"$error":"#DIV/0!"}]
[null,null,null,null,null,null,null,0,null,null,{"$error":"#DIV/0!"},null,{"$error":"#DIV/0!"}]
[null,null,null,null,null,null,null,0,null,null,{"$error":"#DIV/0!"},null,{"$error":"#DIV/0!"}]
[null,null,null,null,null,null,null,0,null,null,{"$error":"#DIV/0!"},null,{"$error":"#DIV/0!"}]
[null,null,null,null,null,null,null,0,null,null,{"$error":"#DIV/0!"},null,{"$error":"#DIV/0!"}]
[null,null,null,null,null,null,null,0,null,null,{"$error":"#DIV/0!"},null,{"$error":"#DIV/0!"}]
[null,null,null,null,null,null,null,0,null,null,{"$error":"#DIV/0!"},null,{"$error":"#DIV/0!"}]
[null,null,null,null,null,null,null,0,null,null,{"$error":"#DIV/0!"},null,{"$error":"#DIV/0!"}]
[null,null,null,null,null,null,null,0,null,null,{"$error":"#DIV/0!"},null,{"$error":"#DIV/0!"}]
[null,null,null,null,null,null,null,0,null,null,{"$error":"#DIV/0!"},null,{"$error":"#DIV/0!"}]
[null,null,null,null,null,null,null,0,null,null,{"$error":"#DIV/0!"},null,{"$error":"#DIV/0!"}]
[null,null,null,null,null,null,null,0,null,null,{"$error":"#DIV/0!"},null,{"$error":"#DIV/0!"}]
[null,null,null,null,null,null,null,0,null,null,{"$error":"#DIV/0!"},null,{"$error":"#DIV/0!"}]
[null,null,null,null,null,null,null,0,null,null,{"$error":"#DIV/0!"},null,{"$error":"#DIV/0!"}]
[null,null,null,null,null,null,null,0,null,null,{"$error":"#DIV/0!"},null,{"$error":"#DIV/0!"}]
[null,null,null,null,null,null,null,0,null,null,{"$error":"#DIV/0!"},null,{"$error":"#DIV/0!"}]
[null,null,null,null,null,null,null,0,null,null,{"$f":"H452/J452","v":{"$error":"#DIV/0!"}},null,{"$f":"(L452-K452)*J452","v":{"$error":"#DIV/0!"}}]
[null,null,null,null,null,null,null,{"$f":"D453+E453-F453-G453","v":0},null,null,{"$error":"#DIV/0!"},null,{"$error":"#DIV/0!"}]
[null,null,null,null,null,null,null,0,null,null,{"$error":"#DIV/0!"},null,{"$error":"#DIV/0!"}]
[null,null,null,null,null,null,null,0,null,null,{"$error":"#DIV/0!"},null,{"$error":"#DIV/0!"}]
[null,null,null,null,null,null,null,0,null,null,{"$error":"#DIV/0!"},null,{"$error":"#DIV/0!"}]
[null,null,null,null,null,null,null,0,null,null,{"$error":"#DIV/0!"},null,{"$error":"#DIV/0!"}]
[null,null,null,null,null,null,null,0,null,null,{"$error":"#DIV/0!"},null,{"$error":"#DIV/0!"}]
[null,null,null,null,null,null,null,0,null,null,{"$error":"#DIV/0!"},null,{"$error":"#DIV/0!"}]
[null,null,null,null,null,null,null,0,null,null,{"$error":"#DIV/0!"},null,{"$error":"#DIV/0!"}]
[null,null,null,null,null,null,null,0,null,null,{"$error":"#DIV/0!"},null,{"$error":"#DIV/0!"}]
[null,null,null,null,null,null,null,0,null,null,{"$error":"#DIV/0!"},null,{"$error":"#DIV/0!"}]
[null,null,null,null,null,null,null,0,null,null,{"$error":"#DIV/0!"},null,{"$error":"#DIV/0!"}]
[null,null,null,null,null,null,null,0,null,null,{"$error":"#DIV/0!"},null,{"$error":"#DIV/0!"}]
[null,null,null,null,null,null,null,0,null,null,{"$error":"#DIV/0!"},null,{"$error":"#DIV/0!"}]
[null,null,null,null,null,null,null,0,null,null,{"$error":"#DIV/0!"},null,{"$error":"#DIV/0!"}]
[null,null,null,null,null,null,null,0,null,null,{"$error":"#DIV/0!"},null,{"$error":"#DIV/0!"}]
[null,null,null,null,null,null,null,0,null,null,{"$error":"#DIV/0!"},null,{"$error":"#DIV/0!"}]
[null,null,null,null,null,null,null,0,null,null,{"$error":"#DIV/0!"},null,{"$error":"#DIV/0!"}]
[null,null,null,null,null,null,null,0,null,null,{"$error":"#DIV/0!"},null,{"$error":"#DIV/0!"}]
[null,null,null,null,null,null,null,0,null,null,{"$error":"#DIV/0!"},null,{"$error":"#DIV/0!"}]
[null,null,null,null,null,null,null,0,null,null,{"$error":"#DIV/0!"},null,{"$error":"#DIV/0!"}]
[null,null,null,null,null,null,null,0,null,null,{"$error":"#DIV/0!"},null,{"$error":"#DIV/0!"}]
[null,null,null,null,null,null,null,0,null,null,{"$error":"#DIV/0!"},null,{"$error":"#DIV/0!"}]
[null,null,null,null,null,null,null,0,null,null,{"$error":"#DIV/0!"},null,{"$error":"#DIV/0!"}]
[null,null,null,null,null,null,null,0,null,null,{"$error":"#DIV/0!"},null,{"$error":"#DIV/0!"}]
[null,null,null,null,null,null,null,0,null,null,{"$error":"#DIV/0!"},null,{"$error":"#DIV/0!"}]
[null,null,null,null,null,null,null,0,null,null,{"$error":"#DIV/0!"},null,{"$error":"#DIV/0!"}]
[null,null,null,null,null,null,null,0,null,null,{"$error":"#DIV/0!"},null,{"$error":"#DIV/0!"}]
[null,null,null,null,null,null,null,0,null,null,{"$error":"#DIV/0!"},null,{"$error":"#DIV/0!"}]
[null,null,null,null,null,null,null,0,null,null,{"$error":"#DIV/0!"},null,{"$error":"#DIV/0!"}]
[null,null,null,null,null,null,null,0,null,null,{"$error":"#DIV/0!"},null,{"$error":"#DIV/0!"}]
[null,null,null,null,null,null,null,0,null,null,{"$error":"#DIV/0!"},null,{"$error":"#DIV/0!"}]
[null,null,null,null,null,null,null,0,null,null,{"$error":"#DIV/0!"},null,{"$error":"#DIV/0!"}]
[null,null,null,null,null,null,null,0,null,null,{"$error":"#DIV/0!"},null,{"$error":"#DIV/0!"}]
[null,null,null,null,null,null,null,0,null,null,{"$error":"#DIV/0!"},null,{"$error":"#DIV/0!"}]
[null,null,null,null,null,null,null,0,null,null,{"$error":"#DIV/0!"},null,{"$error":"#DIV/0!"}]
[null,null,null,null,null,null,null,0,null,null,{"$error":"#DIV/0!"},null,{"$error":"#DIV/0!"}]
[null,null,null,null,null,null,null,0,null,null,{"$error":"#DIV/0!"},null,{"$error":"#DIV/0!"}]
[null,null,null,null,null,null,null,0,null,null,{"$error":"#DIV/0!"},null,{"$error":"#DIV/0!"}]
[null,null,null,null,null,null,null,0,null,null,{"$error":"#DIV/0!"},null,{"$error":"#DIV/0!"}]
[null,null,null,null,null,null,null,0,null,null,{"$error":"#DIV/0!"},null,{"$error":"#DIV/0!"}]
[null,null,null,null,null,null,null,0,null,null,{"$error":"#DIV/0!"},null,{"$error":"#DIV/0!"}]
[null,null,null,null,null,null,null,0,null,null,{"$error":"#DIV/0!"},null,{"$error":"#DIV/0!"}]
[null,null,null,null,null,null,null,0,null,null,{"$error":"#DIV/0!"},null,{"$error":"#DIV/0!"}]
[null,null,null,null,null,null,null,0,null,null,{"$error":"#DIV/0!"},null,{"$error":"#DIV/0!"}]
[null,null,null,null,null,null,null,0,null,null,{"$error":"#DIV/0!"},null,{"$error":"#DIV/0!"}]
[null,null,null,null,null,null,null,0,null,null,{"$error":"#DIV/0!"},null,{"$error":"#DIV/0!"}]
[null,null,null,null,null,null,null,0,null,null,{"$error":"#DIV/0!"},null,{"$error":"#DIV/0!"}]
[null,null,null,null,null,null,null,0,null,null,{"$error":"#DIV/0!"},null,{"$error":"#DIV/0!"}]
[null,null,null,null,null,null,null,0,null,null,{"$error":"#DIV/0!"},null,{"$error":"#DIV/0!"}]
[null,null,null,null,null,null,null,0,null,null,{"$error":"#DIV/0!"},null,{"$error":"#DIV/0!"}]
[null,null,null,null,null,null,null,0,null,null,{"$error":"#DIV/0!"},null,{"$error":"#DIV/0!"}]
[null,null,null,null,null,null,null,0,null,null,{"$error":"#DIV/0!"},null,{"$error":"#DIV/0!"}]
[null,null,null,null,null,null,null,0,null,null,{"$error":"#DIV/0!"},null,{"$error":"#DIV/0!"}]
[null,null,null,null,null,null,null,0,null,null,{"$error":"#DIV/0!"},null,{"$error":"#DIV/0!"}]
[null,null,null,null,null,null,null,0,null,null,{"$error":"#DIV/0!"},null,{"$error":"#DIV/0!"}]
[null,null,null,null,null,null,null,0,null,null,{"$error":"#DIV/0!"},null,{"$error":"#DIV/0!"}]
[null,null,null,null,null,null,null,0,null,null,{"$error":"#DIV/0!"},null,{"$error":"#DIV/0!"}]
[null,null,null,null,null,null,null,0,null,null,{"$error":"#DIV/0!"},null,{"$error":"#DIV/0!"}]
[null,null,null,null,null,null,null,0,null,null,{"$error":"#DIV/0!"},null,{"$error":"#DIV/0!"}]
[null,null,null,null,null,null,null,0,null,null,{"$error":"#DIV/0!"},null,{"$error":"#DIV/0!"}]
[null,null,null,null,null,null,null,0,null,null,{"$error":"#DIV/0!"},null,{"$error":"#DIV/0!"}]
[null,null,null,null,null,null,null,0,null,null,{"$error":"#DIV/0!"},null,{"$error":"#DIV/0!"}]
[null,null,null,null,null,null,null,0,null,null,{"$error":"#DIV/0!"},null,{"$error":"#DIV/0!"}]
[null,null,null,null,null,null,null,0,null,null,{"$f":"H516/J516","v":{"$error":"#DIV/0!"}},null,{"$f":"(L516-K516)*J516","v":{"$error":"#DIV/0!"}}]
[null,null,null,null,null,null,null,{"$f":"D517+E517-F517-G517","v":0},null,null,{"$error":"#DIV/0!"},null,{"$error":"#DIV/0!"}]
[null,null,null,null,null,null,null,0,null,null,{"$error":"#DIV/0!"},null,{"$error":"#DIV/0!"}]
[null,null,null,null,null,null,null,0,null,null,{"$error":"#DIV/0!"},null,{"$error":"#DIV/0!"}]
[null,null,null,null,null,null,null,0,null,null,{"$error":"#DIV/0!"},null,{"$error":"#DIV/0!"}]
[null,null,null,null,null,null,null,0,null,null,{"$error":"#DIV/0!"},null,{"$error":"#DIV/0!"}]
[null,null,null,null,null,null,null,0,null,null,{"$error":"#DIV/0!"},null,{"$error":"#DIV/0!"}]
[null,null,null,null,null,null,null,0,null,null,{"$error":"#DIV/0!"},null,{"$error":"#DIV/0!"}]
[null,null,null,null,null,null,null,0,null,null,{"$error":"#DIV/0!"},null,{"$error":"#DIV/0!"}]
[null,null,null,null,null,null,null,0,null,null,{"$error":"#DIV/0!"},null,{"$error":"#DIV/0!"}]
[null,null,null,null,null,null,null,0,null,null,{"$error":"#DIV/0!"},null,{"$error":"#DIV/0!"}]
[null,null,null,null,null,null,null,0,null,null,{"$error":"#DIV/0!"},null,{"$error":"#DIV/0!"}]
[null,null,null,null,null,null,null,0,null,null,{"$error":"#DIV/0!"},null,{"$error":"#DIV/0!"}]
[null,null,null,null,null,null,null,0,null,null,{"$error":"#DIV/0!"},null,{"$error":"#DIV/0!"}]
[null,null,null,null,null,null,null,0,null,null,{"$error":"#DIV/0!"},null,{"$error":"#DIV/0!"}]
[null,null,null,null,null,null,null,0,null,null,{"$error":"#DIV/0!"},null,{"$error":"#DIV/0!"}]
[null,null,null,null,null,null,null,0,null,null,{"$error":"#DIV/0!"},null,{"$error":"#DIV/0!"}]
[null,null,null,null,null,null,null,0,null,null,{"$error":"#DIV/0!"},null,{"$error":"#DIV/0!"}]
[null,null,null,null,null,null,null,0,null,null,{"$error":"#DIV/0!"},null,{"$error":"#DIV/0!"}]
[null,null,null,null,null,null,null,0,null,null,{"$error":"#DIV/0!"},null,{"$error":"#DIV/0!"}]
[null,null,null,null,null,null,null,0,null,null,{"$error":"#DIV/0!"},null,{"$error":"#DIV/0!"}]
[null,null,null,null,null,null,null,0,null,null,{"$error":"#DIV/0!"},null,{"$error":"#DIV/0!"}]
[null,null,null,null,null,null,null,0,null,null,{"$error":"#DIV/0!"},null,{"$error":"#DIV/0!"}]
[null,null,null,null,null,null,null,0,null,null,{"$error":"#DIV/0!"},null,{"$error":"#DIV/0!"}]
[null,null,null,null,null,null,null,0,null,null,{"$error":"#DIV/0!"},null,{"$error":"#DIV/0!"}]
[null,null,null,null,null,null,null,0,null,null,{"$error":"#DIV/0!"},null,{"$error":"#DIV/0!"}]
[null,null,null,null,null,null,null,0,null,null,{"$error":"#DIV/0!"},null,{"$error":"#DIV/0!"}]
[null,null,null,null,null,null,null,0,null,null,{"$error":"#DIV/0!"},null,{"$error":"#DIV/0!"}]
[null,null,null,null,null,null,null,0,null,null,{"$error":"#DIV/0!"},null,{"$error":"#DIV/0!"}]
[null,null,null,null,null,null,null,0,null,null,{"$error":"#DIV/0!"},null,{"$error":"#DIV/0!"}]
[null,null,null,null,null,null,null,0,null,null,{"$error":"#DIV/0!"},null,{"$error":"#DIV/0!"}]
[null,null,null,null,null,null,null,0,null,null,{"$error":"#DIV/0!"},null,{"$error":"#DIV/0!"}]
[null,null,null,null,null,null,null,0,null,null,{"$error":"#DIV/0!"},null,{"$error":"#DIV/0!"}]
[null,null,null,null,null,null,null,0,null,null,{"$error":"#DIV/0!"},null,{"$error":"#DIV/0!"}]
[null,null,null,null,null,null,null,0,null,null,{"$error":"#DIV/0!"},null,{"$error":"#DIV/0!"}]
[null,null,null,null,null,null,null,0,null,null,{"$error":"#DIV/0!"},null,{"$error":"#DIV/0!"}]
[null,null,null,null,null,null,null,0,null,null,{"$error":"#DIV/0!"},null,{"$error":"#DIV/0!"}]
[null,null,null,null,null,null,null,0,null,null,{"$error":"#DIV/0!"},null,{"$error":"#DIV/0!"}]
[null,null,null,null,null,null,null,0,null,null,{"$error":"#DIV/0!"},null,{"$error":"#DIV/0!"}]
[null,null,null,null,null,null,null,0,null,null,{"$error":"#DIV/0!"},null,{"$error":"#DIV/0!"}]
[null,null,null,null,null,null,null,0,null,null,{"$error":"#DIV/0!"},null,{"$error":"#DIV/0!"}]
[null,null,null,null,null,null,null,0,null,null,{"$error":"#DIV/0!"},null,{"$error":"#DIV/0!"}]
[null,null,null,null,null,null,null,0,null,null,{"$error":"#DIV/0!"},null,{"$error":"#DIV/0!"}]
[null,null,null,null,null,null,null,0,null,null,{"$error":"#DIV/0!"},null,{"$error":"#DIV/0!"}]
[null,null,null,null,null,null,null,0,null,null,{"$error":"#DIV/0!"},null,{"$error":"#DIV/0!"}]
[null,null,null,null,null,null,null,0,null,null,{"$error":"#DIV/0!"},null,{"$error":"#DIV/0!"}]
[null,null,null,null,null,null,null,0,null,null,{"$error":"#DIV/0!"},null,{"$error":"#DIV/0!"}]
[null,null,null,null,null,null,null,0,null,null,{"$error":"#DIV/0!"},null,{"$error":"#DIV/0!"}]
[null,null,null,null,null,null,null,0,null,null,{"$error":"#DIV/0!"},null,{"$error":"#DIV/0!"}]
[null,null,null,null,null,null,null,0,null,null,{"$error":"#DIV/0!"},null,{"$error":"#DIV/0!"}]
[null,null,null,null,null,null,null,0,null,null,{"$error":"#DIV/0!"},null,{"$error":"#DIV/0!"}]
[null,null,null,null,null,null,null,0,null,null,{"$error":"#DIV/0!"},null,{"$error":"#DIV/0!"}]
[null,null,null,null,null,null,null,0,null,null,{"$error":"#DIV/0!"},null,{"$error":"#DIV/0!"}]
[null,null,null,null,null,null,null,0,null,null,{"$error":"#DIV/0!"},null,{"$error":"#DIV/0!"}]
[null,null,null,null,null,null,null,0,null,null,{"$error":"#DIV/0!"},null,{"$error":"#DIV/0!"}]
[null,null,null,null,null,null,null,0,null,null,{"$error":"#DIV/0!"},null,{"$error":"#DIV/0!"}]
[null,null,null,null,null,null,null,0,null,null,{"$error":"#DIV/0!"},null,{"$error":"#DIV/0!"}]
[null,null,null,null,null,null,null,0,null,null,{"$error":"#DIV/0!"},null,{"$error":"#DIV/0!"}]
[null,null,null,null,null,null,null,0,null,null,{"$error":"#DIV/0!"},null,{"$error":"#DIV/0!"}]
[null,null,null,null,null,null,null,0,null,null,{"$error":"#DIV/0!"},null,{"$error":"#DIV/0!"}]
[null,null,null,null,null,null,null,0,null,null,{"$error":"#DIV/0!"},null,{"$error":"#DIV/0!"}]
[null,null,null,null,null,null,null,0,null,null,{"$error":"#DIV/0!"},null,{"$error":"#DIV/0!"}]
[null,null,null,null,null,null,null,0,null,null,{"$error":"#DIV/0!"},null,{"$error":"#DIV/0!"}]
[null,null,null,null,null,null,null,0,null,null,{"$error":"#DIV/0!"},null,{"$error":"#DIV/0!"}]
[null,null,null,null,null,null,null,0,null,null,{"$f":"H580/J580","v":{"$error":"#DIV/0!"}},null,{"$f":"(L580-K580)*J580","v":{"$error":"#DIV/0!"}}]
[null,null,null,null,null,null,null,{"$f":"D581+E581-F581-G581","v":0},null,null,{"$error":"#DIV/0!"},null,{"$error":"#DIV/0!"}]
[null,null,null,null,null,null,null,0,null,null,{"$error":"#DIV/0!"},null,{"$error":"#DIV/0!"}]
[null,null,null,null,null,null,null,0,null,null,{"$error":"#DIV/0!"},null,{"$error":"#DIV/0!"}]
[null,null,null,null,null,null,null,0,null,null,{"$error":"#DIV/0!"},null,{"$error":"#DIV/0!"}]
[null,null,null,null,null,null,null,0,null,null,{"$error":"#DIV/0!"},null,{"$error":"#DIV/0!"}]
[null,null,null,null,null,null,null,0,null,null,{"$error":"#DIV/0!"},null,{"$error":"#DIV/0!"}]
[null,null,null,null,null,null,null,0,null,null,{"$error":"#DIV/0!"},null,{"$error":"#DIV/0!"}]
[null,null,null,null,null,null,null,0,null,null,{"$error":"#DIV/0!"},null,{"$error":"#DIV/0!"}]
[null,null,null,null,null,null,null,0,null,null,{"$error":"#DIV/0!"},null,{"$error":"#DIV/0!"}]
[null,null,null,null,null,null,null,0,null,null,{"$error":"#DIV/0!"},null,{"$error":"#DIV/0!"}]
[null,null,null,null,null,null,null,0,null,null,{"$error":"#DIV/0!"},null,{"$error":"#DIV/0!"}]
[null,null,null,null,null,null,null,0,null,null,{"$error":"#DIV/0!"},null,{"$error":"#DIV/0!"}]
[null,null,null,null,null,null,null,0,null,null,{"$error":"#DIV/0!"},null,{"$error":"#DIV/0!"}]
[null,null,null,null,null,null,null,0,null,null,{"$error":"#DIV/0!"},null,{"$error":"#DIV/0!"}]
[null,null,null,null,null,null,null,0,null,null,{"$error":"#DIV/0!"},null,{"$error":"#DIV/0!"}]
[null,null,null,null,null,null,null,0,null,null,{"$error":"#DIV/0!"},null,{"$error":"#DIV/0!"}]
[null,null,null,null,null,null,null,0,null,null,{"$error":"#DIV/0!"},null,{"$error":"#DIV/0!"}]
[null,null,null,null,null,null,null,0,null,null,{"$error":"#DIV/0!"},null,{"$error":"#DIV/0!"}]
[null,null,null,null,null,null,null,0,null,null,{"$error":"#DIV/0!"},null,{"$error":"#DIV/0!"}]
[null,null,null,null,null,null,null,0,null,null,{"$error":"#DIV/0!"},null,{"$error":"#DIV/0!"}]
[null,null,null,null,null,null,null,0,null,null,{"$error":"#DIV/0!"},null,{"$error":"#DIV/0!"}]
[null,null,null,null,null,null,null,0,null,null,{"$error":"#DIV/0!"},null,{"$error":"#DIV/0!"}]
[null,null,null,null,null,null,null,0,null,null,{"$error":"#DIV/0!"},null,{"$error":"#DIV/0!"}]
[null,null,null,null,null,null,null,0,null,null,{"$error":"#DIV/0!"},null,{"$error":"#DIV/0!"}]
[null,null,null,null,null,null,null,0,null,null,{"$error":"#DIV/0!"},null,{"$error":"#DIV/0!"}]
[null,null,null,null,null,null,null,0,null,null,{"$error":"#DIV/0!"},null,{"$error":"#DIV/0!"}]
[null,null,null,null,null,null,null,0,null,null,{"$error":"#DIV/0!"},null,{"$error":"#DIV/0!"}]
[null,null,null,null,null,null,null,0,null,null,{"$error":"#DIV/0!"},null,{"$error":"#DIV/0!"}]
[null,null,null,null,null,null,null,0,null,null,{"$error":"#DIV/0!"},null,{"$error":"#DIV/0!"}]
[null,null,null,null,null,null,null,0,null,null,{"$error":"#DIV/0!"},null,{"$error":"#DIV/0!"}]
[null,null,null,null,null,null,null,0,null,null,{"$error":"#DIV/0!"},null,{"$error":"#DIV/0!"}]
[null,null,null,null,null,null,null,0,null,null,{"$error":"#DIV/0!"},null,{"$error":"#DIV/0!"}]
[null,null,null,null,null,null,null,0,null,null,{"$error":"#DIV/0!"},null,{"$error":"#DIV/0!"}]
[null,null,null,null,null,null,null,0,null,null,{"$error":"#DIV/0!"},null,{"$error":"#DIV/0!"}]
[null,null,null,null,null,null,null,0,null,null,{"$error":"#DIV/0!"},null,{"$error":"#DIV/0!"}]
[null,null,null,null,null,null,null,0,null,null,{"$error":"#DIV/0!"},null,{"$error":"#DIV/0!"}]
[null,null,null,null,null,null,null,0,null,null,{"$error":"#DIV/0!"},null,{"$error":"#DIV/0!"}]
[null,null,null,null,null,null,null,0,null,null,{"$error":"#DIV/0!"},null,{"$error":"#DIV/0!"}]
[null,null,null,null,null,null,null,0,null,null,{"$error":"#DIV/0!"},null,{"$error":"#DIV/0!"}]
[null,null,null,null,null,null,null,0,null,null,{"$error":"#DIV/0!"},null,{"$error":"#DIV/0!"}]
[null,null,null,null,null,null,null,0,null,null,{"$error":"#DIV/0!"},null,{"$error":"#DIV/0!"}]
[null,null,null,null,null,null,null,0,null,null,{"$error":"#DIV/0!"},null,{"$error":"#DIV/0!"}]
[null,null,null,null,null,null,null,0,null,null,{"$error":"#DIV/0!"},null,{"$error":"#DIV/0!"}]
[null,null,null,null,null,null,null,0,null,null,{"$error":"#DIV/0!"},null,{"$error":"#DIV/0!"}]
[null,null,null,null,null,null,null,0,null,null,{"$error":"#DIV/0!"},null,{"$error":"#DIV/0!"}]
[null,null,null,null,null,null,null,0,null,null,{"$error":"#DIV/0!"},null,{"$error":"#DIV/0!"}]
[null,null,null,null,null,null,null,0,null,null,{"$error":"#DIV/0!"},null,{"$error":"#DIV/0!"}]
[null,null,null,null,null,null,null,0,null,null,{"$error":"#DIV/0!"},null,{"$error":"#DIV/0!"}]
[null,null,null,null,null,null,null,0,null,null,{"$error":"#DIV/0!"},null,{"$error":"#DIV/0!"}]
[null,null,null,null,null,null,null,0,null,null,{"$error":"#DIV/0!"},null,{"$error":"#DIV/0!"}]
[null,null,null,null,null,null,null,0,null,null,{"$error":"#DIV/0!"},null,{"$error":"#DIV/0!"}]
[null,null,null,null,null,null,null,0,null,null,{"$error":"#DIV/0!"},null,{"$error":"#DIV/0!"}]
[null,null,null,null,null,null,null,0,null,null,{"$error":"#DIV/0!"},null,{"$error":"#DIV/0!"}]
[null,null,null,null,null,null,null,0,null,null,{"$error":"#DIV/0!"},null,{"$error":"#DIV/0!"}]
[null,null,null,null,null,null,null,0,null,null,{"$error":"#DIV/0!"},null,{"$error":"#DIV/0!"}]
[null,null,null,null,null,null,null,0,null,null,{"$error":"#DIV/0!"},null,{"$error":"#DIV/0!"}]
[null,null,null,null,null,null,null,0,null,null,{"$error":"#DIV/0!"},null,{"$error":"#DIV/0!"}]
[null,null,null,null,null,null,null,0,null,null,{"$error":"#DIV/0!"},null,{"$error":"#DIV/0!"}]
[null,null,null,null,null,null,null,0,null,null,{"$error":"#DIV/0!"},null,{"$error":"#DIV/0!"}]
[null,null,null,null,null,null,null,0,null,null,{"$error":"#DIV/0!"},null,{"$error":"#DIV/0!"}]
[null,null,null,null,null,null,null,0,null,null,{"$error":"#DIV/0!"},null,{"$error":"#DIV/0!"}]
[null,null,null,null,null,null,null,0,null,null,{"$error":"#DIV/0!"},null,{"$error":"#DIV/0!"}]
[null,null,null,null,null,null,null,0,null,null,{"$error":"#DIV/0!"},null,{"$error":"#DIV/0!"}]
[null,null,null,null,null,null,null,0,null,null,{"$f":"H644/J644","v":{"$error":"#DIV/0!"}},null,{"$f":"(L644-K644)*J644","v":{"$error":"#DIV/0!"}}]
[null,null,null,null,null,null,null,{"$f":"D645+E645-F645-G645","v":0},null,null,{"$error":"#DIV/0!"},null,{"$error":"#DIV/0!"}]
[null,null,null,null,null,null,null,0,null,null,{"$error":"#DIV/0!"},null,{"$error":"#DIV/0!"}]
[null,null,null,null,null,null,null,0,null,null,{"$error":"#DIV/0!"},null,{"$error":"#DIV/0!"}]
[null,null,null,null,null,null,null,0,null,null,{"$error":"#DIV/0!"},null,{"$error":"#DIV/0!"}]
[null,null,null,null,null,null,null,0,null,null,{"$error":"#DIV/0!"},null,{"$error":"#DIV/0!"}]
[null,null,null,null,null,null,null,0,null,null,{"$error":"#DIV/0!"},null,{"$error":"#DIV/0!"}]
[null,null,null,null,null,null,null,0,null,null,{"$error":"#DIV/0!"},null,{"$error":"#DIV/0!"}]
[null,null,null,null,null,null,null,0,null,null,{"$error":"#DIV/0!"},null,{"$error":"#DIV/0!"}]
[null,null,null,null,null,null,null,0,null,null,{"$error":"#DIV/0!"},null,{"$error":"#DIV/0!"}]
[null,null,null,null,null,null,null,0,null,null,{"$error":"#DIV/0!"},null,{"$error":"#DIV/0!"}]
[null,null,null,null,null,null,null,0,null,null,{"$error":"#DIV/0!"},null,{"$error":"#DIV/0!"}]
[null,null,null,null,null,null,null,0,null,null,{"$error":"#DIV/0!"},null,{"$error":"#DIV/0!"}]
[null,null,null,null,null,null,null,0,null,null,{"$error":"#DIV/0!"},null,{"$error":"#DIV/0!"}]
[null,null,null,null,null,null,null,0,null,null,{"$error":"#DIV/0!"},null,{"$error":"#DIV/0!"}]
[null,null,null,null,null,null,null,0,null,null,{"$error":"#DIV/0!"},null,{"$error":"#DIV/0!"}]
[null,null,null,null,null,null,null,0,null,null,{"$error":"#DIV/0!"},null,{"$error":"#DIV/0!"}]
[null,null,null,null,null,null,null,0,null,null,{"$error":"#DIV/0!"},null,{"$error":"#DIV/0!"}]
[null,null,null,null,null,null,null,0,null,null,{"$error":"#DIV/0!"},null,{"$error":"#DIV/0!"}]
[null,null,null,null,null,null,null,0,null,null,{"$error":"#DIV/0!"},null,{"$error":"#DIV/0!"}]
[null,null,null,null,null,null,null,0,null,null,{"$error":"#DIV/0!"},null,{"$error":"#DIV/0!"}]
[null,null,null,null,null,null,null,0,null,null,{"$error":"#DIV/0!"},null,{"$error":"#DIV/0!"}]
[null,null,null,null,null,null,null,0,null,null,{"$error":"#DIV/0!"},null,{"$error":"#DIV/0!"}]
[null,null,null,null,null,null,null,0,null,null,{"$error":"#DIV/0!"},null,{"$error":"#DIV/0!"}]
[null,null,null,null,null,null,null,0,null,null,{"$error":"#DIV/0!"},null,{"$error":"#DIV/0!"}]
[null,null,null,null,null,null,null,0,null,null,{"$error":"#DIV/0!"},null,{"$error":"#DIV/0!"}]
[null,null,null,null,null,null,null,0,null,null,{"$error":"#DIV/0!"},null,{"$error":"#DIV/0!"}]
[null,null,null,null,null,null,null,0,null,null,{"$error":"#DIV/0!"},null,{"$error":"#DIV/0!"}]
[null,null,null,null,null,null,null,0,null,null,{"$error":"#DIV/0!"},null,{"$error":"#DIV/0!"}]
[null,null,null,null,null,null,null,0,null,null,{"$error":"#DIV/0!"},null,{"$error":"#DIV/0!"}]
[null,null,null,null,null,null,null,0,null,null,{"$error":"#DIV/0!"},null,{"$error":"#DIV/0!"}]
[null,null,null,null,null,null,null,0,null,null,{"$error":"#DIV/0!"},null,{"$error":"#DIV/0!"}]
[null,null,null,null,null,null,null,0,null,null,{"$error":"#DIV/0!"},null,{"$error":"#DIV/0!"}]
[null,null,null,null,null,null,null,0,null,null,{"$error":"#DIV/0!"},null,{"$error":"#DIV/0!"}]
[null,null,null,null,null,null,null,0,null,null,{"$error":"#DIV/0!"},null,{"$error":"#DIV/0!"}]
[null,null,null,null,null,null,null,0,null,null,{"$error":"#DIV/0!"},null,{"$error":"#DIV/0!"}]
[null,null,null,null,null,null,null,0,null,null,{"$error":"#DIV/0!"},null,{"$error":"#DIV/0!"}]
[null,null,null,null,null,null,null,0,null,null,{"$error":"#DIV/0!"},null,{"$error":"#DIV/0!"}]
[null,null,null,null,null,null,null,0,null,null,{"$error":"#DIV/0!"},null,{"$error":"#DIV/0!"}]
[null,null,null,null,null,null,null,0,null,null,{"$error":"#DIV/0!"},null,{"$error":"#DIV/0!"}]
[null,null,null,null,null,null,null,0,null,null,{"$error":"#DIV/0!"},null,{"$error":"#DIV/0!"}]
[null,null,null,null,null,null,null,0,null,null,{"$error":"#DIV/0!"},null,{"$error":"#DIV/0!"}]
[null,null,null,null,null,null,null,0,null,null,{"$error":"#DIV/0!"},null,{"$error":"#DIV/0!"}]
[null,null,null,null,null,null,null,0,null,null,{"$error":"#DIV/0!"},null,{"$error":"#DIV/0!"}]
[null,null,null,null,null,null,null,0,null,null,{"$error":"#DIV/0!"},null,{"$error":"#DIV/0!"}]
[null,null,null,null,null,null,null,0,null,null,{"$error":"#DIV/0!"},null,{"$error":"#DIV/0!"}]
[null,null,null,null,null,null,null,0,null,null,{"$error":"#DIV/0!"},null,{"$error":"#DIV/0!"}]
[null,null,null,null,null,null,null,0,null,null,{"$error":"#DIV/0!"},null,{"$error":"#DIV/0!"}]
[null,null,null,null,null,null,null,0,null,null,{"$error":"#DIV/0!"},null,{"$error":"#DIV/0!"}]
[null,null,null,null,null,null,null,0,null,null,{"$error":"#DIV/0!"},null,{"$error":"#DIV/0!"}]
[null,null,null,null,null,null,null,0,null,null,{"$error":"#DIV/0!"},null,{"$error":"#DIV/0!"}]
[null,null,null,null,null,null,null,0,null,null,{"$error":"#DIV/0!"},null,{"$error":"#DIV/0!"}]
[null,null,null,null,null,null,null,0,null,null,{"$error":"#DIV/0!"},null,{"$error":"#DIV/0!"}]
[null,null,null,null,null,null,null,0,null,null,{"$error":"#DIV/0!"},null,{"$error":"#DIV/0!"}]
[null,null,null,null,null,null,null,0,null,null,{"$error":"#DIV/0!"},null,{"$error":"#DIV/0!"}]
[null,null,null,null,null,null,null,0,null,null,{"$error":"#DIV/0!"},null,{"$error":"#DIV/0!"}]
[null,null,null,null,null,null,null,0,null,null,{"$error":"#DIV/0!"},null,{"$error":"#DIV/0!"}]
[null,null,null,null,null,null,null,0,null,null,{"$error":"#DIV/0!"},null,{"$error":"#DIV/0!"}]
[null,null,null,null,null,null,null,0,null,null,{"$error":"#DIV/0!"},null,{"$error":"#DIV/0!"}]
[null,null,null,null,null,null,null,0,null,null,{"$error":"#DIV/0!"},null,{"$error":"#DIV/0!"}]
[null,null,null,null,null,null,null,0,null,null,{"$error":"#DIV/0!"},null,{"$error":"#DIV/0!"}]
[null,null,null,null,null,null,null,0,null,null,{"$error":"#DIV/0!"},null,{"$error":"#DIV/0!"}]
[null,null,null,null,null,null,null,0,null,null,{"$error":"#DIV/0!"},null,{"$error":"#DIV/0!"}]
[null,null,null,null,null,null,null,0,null,null,{"$error":"#DIV/0!"},null,{"$error":"#DIV/0!"}]
[null,null,null,null,null,null,null,0,null,null,{"$f":"H708/J708","v":{"$error":"#DIV/0!"}},null,{"$f":"(L708-K708)*J708","v":{"$error":"#DIV/0!"}}]
[null,null,null,null,null,null,null,{"$f":"D709+E709-F709-G709","v":0},null,null,{"$error":"#DIV/0!"},null,{"$error":"#DIV/0!"}]
[null,null,null,null,null,null,null,0,null,null,{"$error":"#DIV/0!"},null,{"$error":"#DIV/0!"}]
[null,null,null,null,null,null,null,0,null,null,{"$error":"#DIV/0!"},null,{"$error":"#DIV/0!"}]
[null,null,null,null,null,null,null,0,null,null,{"$error":"#DIV/0!"},null,{"$error":"#DIV/0!"}]
[null,null,null,null,null,null,null,0,null,null,{"$error":"#DIV/0!"},null,{"$error":"#DIV/0!"}]
[null,null,null,null,null,null,null,0,null,null,{"$error":"#DIV/0!"},null,{"$error":"#DIV/0!"}]
[null,null,null,null,null,null,null,0,null,null,{"$error":"#DIV/0!"},null,{"$error":"#DIV/0!"}]
[null,null,null,null,null,null,null,0,null,null,{"$error":"#DIV/0!"},null,{"$error":"#DIV/0!"}]
[null,null,null,null,null,null,null,0,null,null,{"$error":"#DIV/0!"},null,{"$error":"#DIV/0!"}]
[null,null,null,null,null,null,null,0,null,null,{"$error":"#DIV/0!"},null,{"$error":"#DIV/0!"}]
[null,null,null,null,null,null,null,0,null,null,{"$error":"#DIV/0!"},null,{"$error":"#DIV/0!"}]
[null,null,null,null,null,null,null,0,null,null,{"$error":"#DIV/0!"},null,{"$error":"#DIV/0!"}]
[null,null,null,null,null,null,null,0,null,null,{"$error":"#DIV/0!"},null,{"$error":"#DIV/0!"}]
[null,null,null,null,null,null,null,0,null,null,{"$error":"#DIV/0!"},null,{"$error":"#DIV/0!"}]
[null,null,null,null,null,null,null,0,null,null,{"$error":"#DIV/0!"},null,{"$error":"#DIV/0!"}]
[null,null,null,null,null,null,null,0,null,null,{"$error":"#DIV/0!"},null,{"$error":"#DIV/0!"}]
[null,null,null,null,null,null,null,0,null,null,{"$error":"#DIV/0!"},null,{"$error":"#DIV/0!"}]
[null,null,null,null,null,null,null,0,null,null,{"$error":"#DIV/0!"},null,{"$error":"#DIV/0!"}]
[null,null,null,null,null,null,null,0,null,null,{"$error":"#DIV/0!"},null,{"$error":"#DIV/0!"}]
[null,null,null,null,null,null,null,0,null,null,{"$error":"#DIV/0!"},null,{"$error":"#DIV/0!"}]
[null,null,null,null,null,null,null,0,null,null,{"$error":"#DIV/0!"},null,{"$error":"#DIV/0!"}]
[null,null,null,null,null,null,null,0,null,null,{"$error":"#DIV/0!"},null,{"$error":"#DIV/0!"}]
[null,null,null,null,null,null,null,0,null,null,{"$error":"#DIV/0!"},null,{"$error":"#DIV/0!"}]
[null,null,null,null,null,null,null,0,null,null,{"$error":"#DIV/0!"},null,{"$error":"#DIV/0!"}]
[null,null,null,null,null,null,null,0,null,null,{"$error":"#DIV/0!"},null,{"$error":"#DIV/0!"}]
[null,null,null,null,null,null,null,0,null,null,{"$error":"#DIV/0!"},null,{"$error":"#DIV/0!"}]
[null,null,null,null,null,null,null,0,null,null,{"$error":"#DIV/0!"},null,{"$error":"#DIV/0!"}]
[null,null,null,null,null,null,null,0,null,null,{"$error":"#DIV/0!"},null,{"$error":"#DIV/0!"}]
[null,null,null,null,null,null,null,0,null,null,{"$error":"#DIV/0!"},null,{"$error":"#DIV/0!"}]
[null,null,null,null,null,null,null,0,null,null,{"$error":"#DIV/0!"},null,{"$error":"#DIV/0!"}]
[null,null,null,null,null,null,null,0,null,null,{"$error":"#DIV/0!"},null,{"$error":"#DIV/0!"}]
[null,null,null,null,null,null,null,0,null,null,{"$error":"#DIV/0!"},null,{"$error":"#DIV/0!"}]
[null,null,null,null,null,null,null,0,null,null,{"$error":"#DIV/0!"},null,{"$error":"#DIV/0!"}]
[null,null,null,null,null,null,null,0,null,null,{"$error":"#DIV/0!"},null,{"$error":"#DIV/0!"}]
[null,null,null,null,null,null,null,0,null,null,{"$error":"#DIV/0!"},null,{"$error":"#DIV/0!"}]
[null,null,null,null,null,null,null,0,null,null,{"$error":"#DIV/0!"},null,{"$error":"#DIV/0!"}]
[null,null,null,null,null,null,null,0,null,null,{"$error":"#DIV/0!"},null,{"$error":"#DIV/0!"}]
[null,null,null,null,null,null,null,0,null,null,{"$error":"#DIV/0!"},null,{"$error":"#DIV/0!"}]
[null,null,null,null,null,null,null,0,null,null,{"$error":"#DIV/0!"},null,{"$error":"#DIV/0!"}]
[null,null,null,null,null,null,null,0,null,null,{"$error":"#DIV/0!"},null,{"$error":"#DIV/0!"}]
[null,null,null,null,null,null,null,0,null,null,{"$error":"#DIV/0!"},null,{"$error":"#DIV/0!"}]
[null,null,null,null,null,null,null,0,null,null,{"$error":"#DIV/0!"},null,{"$error":"#DIV/0!"}]
[null,null,null,null,null,null,null,0,null,null,{"$error":"#DIV/0!"},null,{"$error":"#DIV/0!"}]
[null,null,null,null,null,null,null,0,null,null,{"$error":"#DIV/0!"},null,{"$error":"#DIV/0!"}]
[null,null,null,null,null,null,null,0,null,null,{"$error":"#DIV/0!"},null,{"$error":"#DIV/0!"}]
[null,null,null,null,null,null,null,0,null,null,{"$error":"#DIV/0!"},null,{"$error":"#DIV/0!"}]
[null,null,null,null,null,null,null,0,null,null,{"$error":"#DIV/0!"},null,{"$error":"#DIV/0!"}]
[null,null,null,null,null,null,null,0,null,null,{"$error":"#DIV/0!"},null,{"$error":"#DIV/0!"}]
[null,null,null,null,null,null,null,0,null,null,{"$error":"#DIV/0!"},null,{"$error":"#DIV/0!"}]
[null,null,null,null,null,null,null,0,null,null,{"$error":"#DIV/0!"},null,{"$error":"#DIV/0!"}]
[null,null,null,null,null,null,null,0,null,null,{"$error":"#DIV/0!"},null,{"$error":"#DIV/0!"}]
[null,null,null,null,null,null,null,0,null,null,{"$error":"#DIV/0!"},null,{"$error":"#DIV/0!"}]
[null,null,null,null,null,null,null,0,null,null,{"$error":"#DIV/0!"},null,{"$error":"#DIV/0!"}]
[null,null,null,null,null,null,null,0,null,null,{"$error":"#DIV/0!"},null,{"$error":"#DIV/0!"}]
[null,null,null,null,null,null,null,0,null,null,{"$error":"#DIV/0!"},null,{"$error":"#DIV/0!"}]
[null,null,null,null,null,null,null,0,null,null,{"$error":"#DIV/0!"},null,{"$error":"#DIV/0!"}]
[null,null,null,null,null,null,null,0,null,null,{"$error":"#DIV/0!"},null,{"$error":"#DIV/0!"}]
[null,null,null,null,null,null,null,0,null,null,{"$error":"#DIV/0!"},null,{"$error":"#DIV/0!"}]
[null,null,null,null,null,null,null,0,null,null,{"$error":"#DIV/0!"},null,{"$error":"#DIV/0!"}]
[null,null,null,null,null,null,null,0,null,null,{"$error":"#DIV/0!"},null,{"$error":"#DIV/0!"}]
[null,null,null,null,null,null,null,0,null,null,{"$error":"#DIV/0!"},null,{"$error":"#DIV/0!"}]
[null,null,null,null,null,null,null,0,null,null,{"$error":"#DIV/0!"},null,{"$error":"#DIV/0!"}]
[null,null,null,null,null,null,null,0,null,null,{"$error":"#DIV/0!"},null,{"$error":"#DIV/0!"}]
[null,null,null,null,null,null,null,0,null,null,{"$f":"H772/J772","v":{"$error":"#DIV/0!"}},null,{"$f":"(L772-K772)*J772","v":{"$error":"#DIV/0!"}}]
[null,null,null,null,null,null,null,{"$f":"D773+E773-F773-G773","v":0},null,null,{"$error":"#DIV/0!"},null,{"$error":"#DIV/0!"}]
[null,null,null,null,null,null,null,0,null,null,{"$error":"#DIV/0!"},null,{"$error":"#DIV/0!"}]
[null,null,null,null,null,null,null,0,null,null,{"$error":"#DIV/0!"},null,{"$error":"#DIV/0!"}]
[null,null,null,null,null,null,null,0,null,null,{"$error":"#DIV/0!"},null,{"$error":"#DIV/0!"}]
[null,null,null,null,null,null,null,0,null,null,{"$error":"#DIV/0!"},null,{"$error":"#DIV/0!"}]
[null,null,null,null,null,null,null,0,null,null,{"$error":"#DIV/0!"},null,{"$error":"#DIV/0!"}]
[null,null,null,null,null,null,null,0,null,null,{"$error":"#DIV/0!"},null,{"$error":"#DIV/0!"}]
[null,null,null,null,null,null,null,0,null,null,{"$error":"#DIV/0!"},null,{"$error":"#DIV/0!"}]
[null,null,null,null,null,null,null,0,null,null,{"$error":"#DIV/0!"},null,{"$error":"#DIV/0!"}]
[null,null,null,null,null,null,null,0,null,null,{"$error":"#DIV/0!"},null,{"$error":"#DIV/0!"}]
[null,null,null,null,null,null,null,0,null,null,{"$error":"#DIV/0!"},null,{"$error":"#DIV/0!"}]
[null,null,null,null,null,null,null,0,null,null,{"$error":"#DIV/0!"},null,{"$error":"#DIV/0!"}]
[null,null,null,null,null,null,null,0,null,null,{"$error":"#DIV/0!"},null,{"$error":"#DIV/0!"}]
[null,null,null,null,null,null,null,0,null,null,{"$error":"#DIV/0!"},null,{"$error":"#DIV/0!"}]
[null,null,null,null,null,null,null,0,null,null,{"$error":"#DIV/0!"},null,{"$error":"#DIV/0!"}]
[null,null,null,null,null,null,null,0,null,null,{"$error":"#DIV/0!"},null,{"$error":"#DIV/0!"}]
[null,null,null,null,null,null,null,0,null,null,{"$error":"#DIV/0!"},null,{"$error":"#DIV/0!"}]
[null,null,null,null,null,null,null,0,null,null,{"$error":"#DIV/0!"},null,{"$error":"#DIV/0!"}]
[null,null,null,null,null,null,null,0,null,null,{"$error":"#DIV/0!"},null,{"$error":"#DIV/0!"}]
[null,null,null,null,null,null,null,0,null,null,{"$error":"#DIV/0!"},null,{"$error":"#DIV/0!"}]
[null,null,null,null,null,null,null,0,null,null,{"$error":"#DIV/0!"},null,{"$error":"#DIV/0!"}]
[null,null,null,null,null,null,null,0,null,null,{"$error":"#DIV/0!"},null,{"$error":"#DIV/0!"}]
[null,null,null,null,null,null,null,0,null,null,{"$error":"#DIV/0!"},null,{"$error":"#DIV/0!"}]
[null,null,null,null,null,null,null,0,null,null,{"$error":"#DIV/0!"},null,{"$error":"#DIV/0!"}]
[null,null,null,null,null,null,null,0,null,null,{"$error":"#DIV/0!"},null,{"$error":"#DIV/0!"}]
[null,null,null,null,null,null,null,0,null,null,{"$error":"#DIV/0!"},null,{"$error":"#DIV/0!"}]
[null,null,null,null,null,null,null,0,null,null,{"$error":"#DIV/0!"},null,{"$error":"#DIV/0!"}]
[null,null,null,null,null,null,null,0,null,null,{"$error":"#DIV/0!"},null,{"$error":"#DIV/0!"}]
[null,null,null,null,null,null,null,0,null,null,{"$error":"#DIV/0!"},null,{"$error":"#DIV/0!"}]
[null,null,null,null,null,null,null,0,null,null,{"$error":"#DIV/0!"},null,{"$error":"#DIV/0!"}]
[null,null,null,null,null,null,null,0,null,null,{"$error":"#DIV/0!"},null,{"$error":"#DIV/0!"}]
[null,null,null,null,null,null,null,0,null,null,{"$error":"#DIV/0!"},null,{"$error":"#DIV/0!"}]
[null,null,null,null,null,null,null,0,null,null,{"$error":"#DIV/0!"},null,{"$error":"#DIV/0!"}]
[null,null,null,null,null,null,null,0,null,null,{"$error":"#DIV/0!"},null,{"$error":"#DIV/0!"}]
[null,null,null,null,null,null,null,0,null,null,{"$error":"#DIV/0!"},null,{"$error":"#DIV/0!"}]
[null,null,null,null,null,null,null,0,null,null,{"$error":"#DIV/0!"},null,{"$error":"#DIV/0!"}]
[null,null,null,null,null,null,null,0,null,null,{"$error":"#DIV/0!"},null,{"$error":"#DIV/0!"}]
[null,null,null,null,null,null,null,0,null,null,{"$error":"#DIV/0!"},null,{"$error":"#DIV/0!"}]
[null,null,null,null,null,null,null,0,null,null,{"$error":"#DIV/0!"},null,{"$error":"#DIV/0!"}]
[null,null,null,null,null,null,null,0,null,null,{"$error":"#DIV/0!"},null,{"$error":"#DIV/0!"}]
[null,null,null,null,null,null,null,0,null,null,{"$error":"#DIV/0!"},null,{"$error":"#DIV/0!"}]
[null,null,null,null,null,null,null,0,null,null,{"$error":"#DIV/0!"},null,{"$error":"#DIV/0!"}]
[null,null,null,null,null,null,null,0,null,null,{"$error":"#DIV/0!"},null,{"$error":"#DIV/0!"}]
[null,null,null,null,null,null,null,0,null,null,{"$error":"#DIV/0!"},null,{"$error":"#DIV/0!"}]
[null,null,null,null,null,null,null,0,null,null,{"$error":"#DIV/0!"},null,{"$error":"#DIV/0!"}]
[null,null,null,null,null,null,null,0,null,null,{"$error":"#DIV/0!"},null,{"$error":"#DIV/0!"}]
[null,null,null,null,null,null,null,0,null,null,{"$error":"#DIV/0!"},null,{"$error":"#DIV/0!"}]
[null,null,null,null,null,null,null,0,null,null,{"$error":"#DIV/0!"},null,{"$error":"#DIV/0!"}]
[null,null,null,null,null,null,null,0,null,null,{"$error":"#DIV/0!"},null,{"$error":"#DIV/0!"}]
[null,null,null,null,null,null,null,0,null,null,{"$error":"#DIV/0!"},null,{"$error":"#DIV/0!"}]
[null,null,null,null,null,null,null,0,null,null,{"$error":"#DIV/0!"},null,{"$error":"#DIV/0!"}]
[null,null,null,null,null,null,null,0,null,null,{"$error":"#DIV/0!"},null,{"$error":"#DIV/0!"}]
[null,null,null,null,null,null,null,0,null,null,{"$error":"#DIV/0!"},null,{"$error":"#DIV/0!"}]
[null,null,null,null,null,null,null,0,null,null,{"$error":"#DIV/0!"},null,{"$error":"#DIV/0!"}]
[null,null,null,null,null,null,null,0,null,null,{"$error":"#DIV/0!"},null,{"$error":"#DIV/0!"}]
[null,null,null,null,null,null,null,0,null,null,{"$error":"#DIV/0!"},null,{"$error":"#DIV/0!"}]
[null,null,null,null,null,null,null,0,null,null,{"$error":"#DIV/0!"},null,{"$error":"#DIV/0!"}]
[null,null,null,null,null,null,null,0,null,null,{"$error":"#DIV/0!"},null,{"$error":"#DIV/0!"}]
[null,null,null,null,null,null,null,0,null,null,{"$error":"#DIV/0!"},null,{"$error":"#DIV/0!"}]
[null,null,null,null,null,null,null,0,null,null,{"$error":"#DIV/0!"},null,{"$error":"#DIV/0!"}]
[null,null,null,null,null,null,null,0,null,null,{"$error":"#DIV/0!"},null,{"$error":"#DIV/0!"}]
[null,null,null,null,null,null,null,0,null,null,{"$error":"#DIV/0!"},null,{"$error":"#DIV/0!"}]
[null,null,null,null,null,null,null,0,null,null,{"$error":"#DIV/0!"},null,{"$error":"#DIV/0!"}]
[null,null,null,null,null,null,null,0,null,null,{"$f":"H836/J836","v":{"$error":"#DIV/0!"}},null,{"$f":"(L836-K836)*J836","v":{"$error":"#DIV/0!"}}]
[null,null,null,null,null,null,null,{"$f":"D837+E837-F837-G837","v":0},null,null,{"$error":"#DIV/0!"},null,{"$error":"#DIV/0!"}]
[null,null,null,null,null,null,null,0,null,null,{"$error":"#DIV/0!"},null,{"$error":"#DIV/0!"}]
[null,null,null,null,null,null,null,0,null,null,{"$error":"#DIV/0!"},null,{"$error":"#DIV/0!"}]
[null,null,null,null,null,null,null,0,null,null,{"$error":"#DIV/0!"},null,{"$error":"#DIV/0!"}]
[null,null,null,null,null,null,null,0,null,null,{"$error":"#DIV/0!"},null,{"$error":"#DIV/0!"}]
[null,null,null,null,null,null,null,0,null,null,{"$error":"#DIV/0!"},null,{"$error":"#DIV/0!"}]
[null,null,null,null,null,null,null,0,null,null,{"$error":"#DIV/0!"},null,{"$error":"#DIV/0!"}]
[null,null,null,null,null,null,null,0,null,null,{"$error":"#DIV/0!"},null,{"$error":"#DIV/0!"}]
[null,null,null,null,null,null,null,0,null,null,{"$error":"#DIV/0!"},null,{"$error":"#DIV/0!"}]
[null,null,null,null,null,null,null,0,null,null,{"$error":"#DIV/0!"},null,{"$error":"#DIV/0!"}]
[null,null,null,null,null,null,null,0,null,null,{"$error":"#DIV/0!"},null,{"$error":"#DIV/0!"}]
[null,null,null,null,null,null,null,0,null,null,{"$error":"#DIV/0!"},null,{"$error":"#DIV/0!"}]
[null,null,null,null,null,null,null,0,null,null,{"$error":"#DIV/0!"},null,{"$error":"#DIV/0!"}]
[null,null,null,null,null,null,null,0,null,null,{"$error":"#DIV/0!"},null,{"$error":"#DIV/0!"}]
[null,null,null,null,null,null,null,0,null,null,{"$error":"#DIV/0!"},null,{"$error":"#DIV/0!"}]
[null,null,null,null,null,null,null,0,null,null,{"$error":"#DIV/0!"},null,{"$error":"#DIV/0!"}]
[null,null,null,null,null,null,null,0,null,null,{"$error":"#DIV/0!"},null,{"$error":"#DIV/0!"}]
[null,null,null,null,null,null,null,0,null,null,{"$error":"#DIV/0!"},null,{"$error":"#DIV/0!"}]
[null,null,null,null,null,null,null,0,null,null,{"$error":"#DIV/0!"},null,{"$error":"#DIV/0!"}]
[null,null,null,null,null,null,null,0,null,null,{"$error":"#DIV/0!"},null,{"$error":"#DIV/0!"}]
[null,null,null,null,null,null,null,0,null,null,{"$error":"#DIV/0!"},null,{"$error":"#DIV/0!"}]
[null,null,null,null,null,null,null,0,null,null,{"$error":"#DIV/0!"},null,{"$error":"#DIV/0!"}]
[null,null,null,null,null,null,null,0,null,null,{"$error":"#DIV/0!"},null,{"$error":"#DIV/0!"}]
[null,null,null,null,null,null,null,0,null,null,{"$error":"#DIV/0!"},null,{"$error":"#DIV/0!"}]
[null,null,null,null,null,null,null,0,null,null,{"$error":"#DIV/0!"},null,{"$error":"#DIV/0!"}]
[null,null,null,null,null,null,null,0,null,null,{"$error":"#DIV/0!"},null,{"$error":"#DIV/0!"}]
[null,null,null,null,null,null,null,0,null,null,{"$error":"#DIV/0!"},null,{"$error":"#DIV/0!"}]
[null,null,null,null,null,null,null,0,null,null,{"$error":"#DIV/0!"},null,{"$error":"#DIV/0!"}]
[null,null,null,null,null,null,null,0,null,null,{"$error":"#DIV/0!"},null,{"$error":"#DIV/0!"}]
[null,null,null,null,null,null,null,0,null,null,{"$error":"#DIV/0!"},null,{"$error":"#DIV/0!"}]
[null,null,null,null,null,null,null,0,null,null,{"$error":"#DIV/0!"},null,{"$error":"#DIV/0!"}]
[null,null,null,null,null,null,null,0,null,null,{"$error":"#DIV/0!"},null,{"$error":"#DIV/0!"}]
[null,null,null,null,null,null,null,0,null,null,{"$error":"#DIV/0!"},null,{"$error":"#DIV/0!"}]
[null,null,null,null,null,null,null,0,null,null,{"$error":"#DIV/0!"},null,{"$error":"#DIV/0!"}]
[null,null,null,null,null,null,null,0,null,null,{"$error":"#DIV/0!"},null,{"$error":"#DIV/0!"}]
[null,null,null,null,null,null,null,0,null,null,{"$error":"#DIV/0!"},null,{"$error":"#DIV/0!"}]
[null,null,null,null,null,null,null,0,null,null,{"$error":"#DIV/0!"},null,{"$error":"#DIV/0!"}]
[null,null,null,null,null,null,null,0,null,null,{"$error":"#DIV/0!"},null,{"$error":"#DIV/0!"}]
[null,null,null,null,null,null,null,0,null,null,{"$error":"#DIV/0!"},null,{"$error":"#DIV/0!"}]
[null,null,null,null,null,null,null,0,null,null,{"$error":"#DIV/0!"},null,{"$error":"#DIV/0!"}]
[null,null,null,null,null,null,null,0,null,null,{"$error":"#DIV/0!"},null,{"$error":"#DIV/0!"}]
[null,null,null,null,null,null,null,0,null,null,{"$error":"#DIV/0!"},null,{"$error":"#DIV/0!"}]
[null,null,null,null,null,null,null,0,null,null,{"$error":"#DIV/0!"},null,{"$error":"#DIV/0!"}]
[null,null,null,null,null,null,null,0,null,null,{"$error":"#DIV/0!"},null,{"$error":"#DIV/0!"}]
[null,null,null,null,null,null,null,0,null,null,{"$error":"#DIV/0!"},null,{"$error":"#DIV/0!"}]
[null,null,null,null,null,null,null,0,null,null,{"$error":"#DIV/0!"},null,{"$error":"#DIV/0!"}]
[null,null,null,null,null,null,null,0,null,null,{"$error":"#DIV/0!"},null,{"$error":"#DIV/0!"}]
[null,null,null,null,null,null,null,0,null,null,{"$error":"#DIV/0!"},null,{"$error":"#DIV/0!"}]
[null,null,null,null,null,null,null,0,null,null,{"$error":"#DIV/0!"},null,{"$error":"#DIV/0!"}]
[null,null,null,null,null,null,null,0,null,null,{"$error":"#DIV/0!"},null,{"$error":"#DIV/0!"}]
[null,null,null,null,null,null,null,0,null,null,{"$error":"#DIV/0!"},null,{"$error":"#DIV/0!"}]
[null,null,null,null,null,null,null,0,null,null,{"$error":"#DIV/0!"},null,{"$error":"#DIV/0!"}]
[null,null,null,null,null,null,null,0,null,null,{"$error":"#DIV/0!"},null,{"$error":"#DIV/0!"}]
[null,null,null,null,null,null,null,0,null,null,{"$error":"#DIV/0!"},null,{"$error":"#DIV/0!"}]
[null,null,null,null,null,null,null,0,null,null,{"$error":"#DIV/0!"},null,{"$error":"#DIV/0!"}]
[null,null,null,null,null,null,null,0,null,null,{"$error":"#DIV/0!"},null,{"$error":"#DIV/0!"}]
[null,null,null,null,null,null,null,0,null,null,{"$error":"#DIV/0!"},null,{"$error":"#DIV/0!"}]
[null,null,null,null,null,null,null,0,null,null,{"$error":"#DIV/0!"},null,{"$error":"#DIV/0!"}]
[null,null,null,null,null,null,null,0,null,null,{"$error":"#DIV/0!"},null,{"$error":"#DIV/0!"}]
[null,null,null,null,null,null,null,0,null,null,{"$error":"#DIV/0!"},null,{"$error":"#DIV/0!"}]
[null,null,null,null,null,null,null,0,null,null,{"$error":"#DIV/0!"},null,{"$error":"#DIV/0!"}]
[null,null,null,null,null,null,null,0,null,null,{"$error":"#DIV/0!"},null,{"$error":"#DIV/0!"}]
[null,null,null,null,null,null,null,0,null,null,{"$error":"#DIV/0!"},null,{"$error":"#DIV/0!"}]
[null,null,null,null,null,null,null,0,null,null,{"$f":"H900/J900","v":{"$error":"#DIV/0!"}},null,{"$f":"(L900-K900)*J900","v":{"$error":"#DIV/0!"}}]
[null,null,null,null,null,null,null,{"$f":"D901+E901-F901-G901","v":0},null,null,{"$error":"#DIV/0!"},null,{"$error":"#DIV/0!"}]
[null,null,null,null,null,null,null,0,null,null,{"$error":"#DIV/0!"},null,{"$error":"#DIV/0!"}]
[null,null,null,null,null,null,null,0,null,null,{"$error":"#DIV/0!"},null,{"$error":"#DIV/0!"}]
[null,null,null,null,null,null,null,0,null,null,{"$error":"#DIV/0!"},null,{"$error":"#DIV/0!"}]
[null,null,null,null,null,null,null,0,null,null,{"$error":"#DIV/0!"},null,{"$error":"#DIV/0!"}]
[null,null,null,null,null,null,null,0,null,null,{"$error":"#DIV/0!"},null,{"$error":"#DIV/0!"}]
[null,null,null,null,null,null,null,0,null,null,{"$error":"#DIV/0!"},null,{"$error":"#DIV/0!"}]
[null,null,null,null,null,null,null,0,null,null,{"$error":"#DIV/0!"},null,{"$error":"#DIV/0!"}]
[null,null,null,null,null,null,null,0,null,null,{"$error":"#DIV/0!"},null,{"$error":"#DIV/0!"}]
[null,null,null,null,null,null,null,0,null,null,{"$error":"#DIV/0!"},null,{"$error":"#DIV/0!"}]
[null,null,null,null,null,null,null,0,null,null,{"$error":"#DIV/0!"},null,{"$error":"#DIV/0!"}]
[null,null,null,null,null,null,null,0,null,null,{"$error":"#DIV/0!"},null,{"$error":"#DIV/0!"}]
[null,null,null,null,null,null,null,0,null,null,{"$error":"#DIV/0!"},null,{"$error":"#DIV/0!"}]
[null,null,null,null,null,null,null,0,null,null,{"$error":"#DIV/0!"},null,{"$error":"#DIV/0!"}]
[null,null,null,null,null,null,null,0,null,null,{"$error":"#DIV/0!"},null,{"$error":"#DIV/0!"}]
[null,null,null,null,null,null,null,0,null,null,{"$error":"#DIV/0!"},null,{"$error":"#DIV/0!"}]
[null,null,null,null,null,null,null,0,null,null,{"$error":"#DIV/0!"},null,{"$error":"#DIV/0!"}]
[null,null,null,null,null,null,null,0,null,null,{"$error":"#DIV/0!"},null,{"$error":"#DIV/0!"}]
[null,null,null,null,null,null,null,0,null,null,{"$error":"#DIV/0!"},null,{"$error":"#DIV/0!"}]
[null,null,null,null,null,null,null,0,null,null,{"$error":"#DIV/0!"},null,{"$error":"#DIV/0!"}]
[null,null,null,null,null,null,null,0,null,null,{"$error":"#DIV/0!"},null,{"$error":"#DIV/0!"}]
[null,null,null,null,null,null,null,0,null,null,{"$error":"#DIV/0!"},null,{"$error":"#DIV/0!"}]
[null,null,null,null,null,null,null,0,null,null,{"$error":"#DIV/0!"},null,{"$error":"#DIV/0!"}]
[null,null,null,null,null,null,null,0,null,null,{"$error":"#DIV/0!"},null,{"$error":"#DIV/0!"}]
[null,null,null,null,null,null,null,0,null,null,{"$error":"#DIV/0!"},null,{"$error":"#DIV/0!"}]
[null,null,null,null,null,null,null,0,null,null,{"$error":"#DIV/0!"},null,{"$error":"#DIV/0!"}]
[null,null,null,null,null,null,null,0,null,null,{"$error":"#DIV/0!"},null,{"$error":"#DIV/0!"}]
[null,null,null,null,null,null,null,0,null,null,{"$error":"#DIV/0!"},null,{"$error":"#DIV/0!"}]
[null,null,null,null,null,null,null,0,null,null,{"$error":"#DIV/0!"},null,{"$error":"#DIV/0!"}]
[null,null,null,null,null,null,null,0,null,null,{"$error":"#DIV/0!"},null,{"$error":"#DIV/0!"}]
[null,null,null,null,null,null,null,0,null,null,{"$error":"#DIV/0!"},null,{"$error":"#DIV/0!"}]
[null,null,null,null,null,null,null,0,null,null,{"$error":"#DIV/0!"},null,{"$error":"#DIV/0!"}]
[null,null,null,null,null,null,null,0,null,null,{"$error":"#DIV/0!"},null,{"$error":"#DIV/0!"}]
[null,null,null,null,null,null,null,0,null,null,{"$error":"#DIV/0!"},null,{"$error":"#DIV/0!"}]
[null,null,null,null,null,null,null,0,null,null,{"$error":"#DIV/0!"},null,{"$error":"#DIV/0!"}]
[null,null,null,null,null,null,null,0,null,null,{"$error":"#DIV/0!"},null,{"$error":"#DIV/0!"}]
[null,null,null,null,null,null,null,0,null,null,{"$error":"#DIV/0!"},null,{"$error":"#DIV/0!"}]
[null,null,null,null,null,null,null,0,null,null,{"$error":"#DIV/0!"},null,{"$error":"#DIV/0!"}]
[null,null,null,null,null,null,null,0,null,null,{"$error":"#DIV/0!"},null,{"$error":"#DIV/0!"}]
[null,null,null,null,null,null,null,0,null,null,{"$error":"#DIV/0!"},null,{"$error":"#DIV/0!"}]
[null,null,null,null,null,null,null,0,null,null,{"$error":"#DIV/0!"},null,{"$error":"#DIV/0!"}]
[null,null,null,null,null,null,null,0,null,null,{"$error":"#DIV/0!"},null,{"$error":"#DIV/0!"}]
[null,null,null,null,null,null,null,0,null,null,{"$error":"#DIV/0!"},null,{"$error":"#DIV/0!"}]
[null,null,null,null,null,null,null,0,null,null,{"$error":"#DIV/0!"},null,{"$error":"#DIV/0!"}]
[null,null,null,null,null,null,null,0,null,null,{"$error":"#DIV/0!"},null,{"$error":"#DIV/0!"}]
[null,null,null,null,null,null,null,0,null,null,{"$error":"#DIV/0!"},null,{"$error":"#DIV/0!"}]
[null,null,null,null,null,null,null,0,null,null,{"$error":"#DIV/0!"},null,{"$error":"#DIV/0!"}]
[null,null,null,null,null,null,null,0,null,null,{"$error":"#DIV/0!"},null,{"$error":"#DIV/0!"}]
[null,null,null,null,null,null,null,0,null,null,{"$error":"#DIV/0!"},null,{"$error":"#DIV/0!"}]
[null,null,null,null,null,null,null,0,null,null,{"$error":"#DIV/0!"},null,{"$error":"#DIV/0!"}]
[null,null,null,null,null,null,null,0,null,null,{"$error":"#DIV/0!"},null,{"$error":"#DIV/0!"}]
[null,null,null,null,null,null,null,0,null,null,{"$error":"#DIV/0!"},null,{"$error":"#DIV/0!"}]
[null,null,null,null,null,null,null,0,null,null,{"$error":"#DIV/0!"},null,{"$error":"#DIV/0!"}]
[null,null,null,null,null,null,null,0,null,null,{"$error":"#DIV/0!"},null,{"$error":"#DIV/0!"}]
[null,null,null,null,null,null,null,0,null,null,{"$error":"#DIV/0!"},null,{"$error":"#DIV/0!"}]
[null,null,null,null,null,null,null,0,null,null,{"$error":"#DIV/0!"},null,{"$error":"#DIV/0!"}]
[null,null,null,null,null,null,null,0,null,null,{"$error":"#DIV/0!"},null,{"$error":"#DIV/0!"}]
[null,null,null,null,null,null,null,0,null,null,{"$error":"#DIV/0!"},null,{"$error":"#DIV/0!"}]
[null,null,null,null,null,null,null,0,null,null,{"$error":"#DIV/0!"},null,{"$error":"#DIV/0!"}]
[null,null,null,null,null,null,null,0,null,null,{"$error":"#DIV/0!"},null,{"$error":"#DIV/0!"}]
[null,null,null,null,null,null,null,0,null,null,{"$error":"#DIV/0!"},null,{"$error":"#DIV/0!"}]
[null,null,null,null,null,null,null,0,null,null,{"$error":"#DIV/0!"},null,{"$error":"#DIV/0!"}]
[null,null,null,null,null,null,null,0,null,null,{"$error":"#DIV/0!"},null,{"$error":"#DIV/0!"}]
[null,null,null,null,null,null,null,0,null,null,{"$f":"H964/J964","v":{"$error":"#DIV/0!"}},null,{"$f":"(L964-K964)*J964","v":{"$error":"#DIV/0!"}}]
[null,null,null,null,null,null,null,{"$f":"D965+E965-F965-G965","v":0},null,null,{"$error":"#DIV/0!"},null,{"$error":"#DIV/0!"}]
[null,null,null,null,null,null,null,0,null,null,{"$error":"#DIV/0!"},null,{"$error":"#DIV/0!"}]
[null,null,null,null,null,null,null,0,null,null,{"$error":"#DIV/0!"},null,{"$error":"#DIV/0!"}]
[null,null,null,null,null,null,null,0,null,null,{"$error":"#DIV/0!"},null,{"$error":"#DIV/0!"}]
[null,null,null,null,null,null,null,0,null,null,{"$error":"#DIV/0!"},null,{"$error":"#DIV/0!"}]
[null,null,null,null,null,null,null,0,null,null,{"$error":"#DIV/0!"},null,{"$error":"#DIV/0!"}]
[null,null,null,null,null,null,null,0,null,null,{"$error":"#DIV/0!"},null,{"$error":"#DIV/0!"}]
[null,null,null,null,null,null,null,0,null,null,{"$error":"#DIV/0!"},null,{"$error":"#DIV/0!"}]
[null,null,null,null,null,null,null,0,null,null,{"$error":"#DIV/0!"},null,{"$error":"#DIV/0!"}]
[null,null,null,null,null,null,null,0,null,null,{"$error":"#DIV/0!"},null,{"$error":"#DIV/0!"}]
[null,null,null,null,null,null,null,0,null,null,{"$error":"#DIV/0!"},null,{"$error":"#DIV/0!"}]
[null,null,null,null,null,null,null,0,null,null,{"$error":"#DIV/0!"},null,{"$error":"#DIV/0!"}]
[null,null,null,null,null,null,null,0,null,null,{"$error":"#DIV/0!"},null,{"$error":"#DIV/0!"}]
[null,null,null,null,null,null,null,0,null,null,{"$error":"#DIV/0!"},null,{"$error":"#DIV/0!"}]
[null,null,null,null,null,null,null,0,null,null,{"$error":"#DIV/0!"},null,{"$error":"#DIV/0!"}]
[null,null,null,null,null,null,null,0,null,null,{"$error":"#DIV/0!"},null,{"$error":"#DIV/0!"}]
[null,null,null,null,null,null,null,0,null,null,{"$error":"#DIV/0!"},null,{"$error":"#DIV/0!"}]
[null,null,null,null,null,null,null,0,null,null,{"$error":"#DIV/0!"},null,{"$error":"#DIV/0!"}]
[null,null,null,null,null,null,null,0,null,null,{"$error":"#DIV/0!"},null,{"$error":"#DIV/0!"}]
[null,null,null,null,null,null,null,0,null,null,{"$error":"#DIV/0!"},null,{"$error":"#DIV/0!"}]
[null,null,null,null,null,null,null,0,null,null,{"$error":"#DIV/0!"},null,{"$error":"#DIV/0!"}]
[null,null,null,null,null,null,null,0,null,null,{"$error":"#DIV/0!"},null,{"$error":"#DIV/0!"}]
[null,null,null,null,null,null,null,0,null,null,{"$error":"#DIV/0!"},null,{"$error":"#DIV/0!"}]
[null,null,null,null,null,null,null,0,null,null,{"$error":"#DIV/0!"},null,{"$error":"#DIV/0!"}]
[null,null,null,null,null,null,null,0,null,null,{"$error":"#DIV/0!"},null,{"$error":"#DIV/0!"}]
[null,null,null,null,null,null,null,0,null,null,{"$error":"#DIV/0!"},null,{"$error":"#DIV/0!"}]
[null,null,null,null,null,null,null,0,null,null,{"$error":"#DIV/0!"},null,{"$error":"#DIV/0!"}]
[null,null,null,null,null,null,null,0,null,null,{"$error":"#DIV/0!"},null,{"$error":"#DIV/0!"}]
[null,null,null,null,null,null,null,0,null,null,{"$error":"#DIV/0!"},null,{"$error":"#DIV/0!"}]
[null,null,null,null,null,null,null,0,null,null,{"$error":"#DIV/0!"},null,{"$error":"#DIV/0!"}]
[null,null,null,null,null,null,null,0,null,null,{"$error":"#DIV/0!"},null,{"$error":"#DIV/0!"}]
[null,null,null,null,null,null,null,0,null,null,{"$error":"#DIV/0!"},null,{"$error":"#DIV/0!"}]
[null,null,null,null,null,null,null,0,null,null,{"$error":"#DIV/0!"},null,{"$error":"#DIV/0!"}]
[null,null,null,null,null,null,null,0,null,null,{"$error":"#DIV/0!"},null,{"$error":"#DIV/0!"}]
[null,null,null,null,null,null,null,0,null,null,{"$error":"#DIV/0!"},null,{"$error":"#DIV/0!"}]
[null,null,null,null,null,null,null,0,null,null,{"$error":"#DIV/0!"},null,{"$error":"#DIV/0!"}]